{"text_format":"1","workbook":"xlsx","n_sheets":10,"sheets":["1ª MEDIÇÃO","2ª MEDIÇÃO","3ª MEDIÇÃO","4ª MEDIÇÃO","5ª MEDIÇÃO","6ª MEDIÇÃO","7ª MEDIÇÃO","8ª MEDIÇÃO","9ª MEDIÇÃO","PLANILHA SINTÉTICA"],"not_rendered":{"charts":0,"images":2,"macros":1,"external_links":12,"defined_names":1440,"comments":0,"pivot_tables":0},"unopened":[],"bounds":{"document_bytes":16777216,"sheet_cells":100000,"rows_first":2000,"rows_last":500,"rows_between":2000,"halvings":0,"cell_chars":16384,"cell_head_chars":4096},"cells_cut":0,"cells_raw":0,"read":"whole","date_system":"1900"}

{"sheet":"1ª MEDIÇÃO","index":0,"n_rows":4,"n_cols":10,"rows_kept":4,"cut":false,"hidden":true,"merged":[[0,0,0,8],[1,0,1,8],[2,0,2,8]]}
["TRIBUNAL DE JUSTIÇA DE PERNAMBUCO"]
[{"$f":"#REF!","v":{"$error":"#REF!"}}]
["MEMÓRIA DE CALCULO - 1ª MEDIÇÃO"]
["ITEM","DESCRIÇÃO","QUANT.","LARG.","COMP.","ALT.","TAXA","TOTAL","UNID","MEMORIAL FOTOGRÁFICO"]

{"sheet":"2ª MEDIÇÃO","index":1,"n_rows":4,"n_cols":10,"rows_kept":4,"cut":false,"hidden":true,"merged":[[0,0,0,8],[1,0,1,8],[2,0,2,8]]}
["TRIBUNAL DE JUSTIÇA DE PERNAMBUCO"]
[{"$f":"#REF!","v":{"$error":"#REF!"}}]
["MEMÓRIA DE CALCULO - 2ª MEDIÇÃO"]
["ITEM","DESCRIÇÃO","QUANT.","LARG.","COMP.","ALT.","TAXA","TOTAL","UNID","MEMORIAL FOTOGRÁFICO"]

{"sheet":"3ª MEDIÇÃO","index":2,"n_rows":4,"n_cols":10,"rows_kept":4,"cut":false,"hidden":true,"merged":[[0,0,0,8],[1,0,1,8],[2,0,2,8]]}
["TRIBUNAL DE JUSTIÇA DE PERNAMBUCO"]
[{"$f":"#REF!","v":{"$error":"#REF!"}}]
["MEMÓRIA DE CALCULO - 3ª MEDIÇÃO"]
["ITEM","DESCRIÇÃO","QUANT.","LARG.","COMP.","ALT.","TAXA","TOTAL","UNID","MEMORIAL FOTOGRÁFICO"]

{"sheet":"4ª MEDIÇÃO","index":3,"n_rows":4,"n_cols":10,"rows_kept":4,"cut":false,"hidden":true,"merged":[[0,0,0,8],[1,0,1,8],[2,0,2,8]]}
["TRIBUNAL DE JUSTIÇA DE PERNAMBUCO"]
[{"$f":"#REF!","v":{"$error":"#REF!"}}]
["MEMÓRIA DE CALCULO - 4ª MEDIÇÃO"]
["ITEM","DESCRIÇÃO","QUANT.","LARG.","COMP.","ALT.","TAXA","TOTAL","UNID","MEMORIAL FOTOGRÁFICO"]

{"sheet":"5ª MEDIÇÃO","index":4,"n_rows":4,"n_cols":10,"rows_kept":4,"cut":false,"hidden":true,"merged":[[0,0,0,8],[1,0,1,8],[2,0,2,8]]}
["TRIBUNAL DE JUSTIÇA DE PERNAMBUCO"]
[{"$f":"#REF!","v":{"$error":"#REF!"}}]
["MEMÓRIA DE CALCULO - 5ª MEDIÇÃO"]
["ITEM","DESCRIÇÃO","QUANT.","LARG.","COMP.","ALT.","TAXA","TOTAL","UNID","MEMORIAL FOTOGRÁFICO"]

{"sheet":"6ª MEDIÇÃO","index":5,"n_rows":4,"n_cols":10,"rows_kept":4,"cut":false,"hidden":true,"merged":[[0,0,0,8],[1,0,1,8],[2,0,2,8]]}
["TRIBUNAL DE JUSTIÇA DE PERNAMBUCO"]
[{"$f":"#REF!","v":{"$error":"#REF!"}}]
["MEMÓRIA DE CALCULO - 6ª MEDIÇÃO"]
["ITEM","DESCRIÇÃO","QUANT.","LARG.","COMP.","ALT.","TAXA","TOTAL","UNID","MEMORIAL FOTOGRÁFICO"]

{"sheet":"7ª MEDIÇÃO","index":6,"n_rows":4,"n_cols":10,"rows_kept":4,"cut":false,"hidden":true,"merged":[[0,0,0,8],[1,0,1,8],[2,0,2,8]]}
["TRIBUNAL DE JUSTIÇA DE PERNAMBUCO"]
[{"$f":"#REF!","v":{"$error":"#REF!"}}]
["MEMÓRIA DE CALCULO - 7ª MEDIÇÃO"]
["ITEM","DESCRIÇÃO","QUANT.","LARG.","COMP.","ALT.","TAXA","TOTAL","UNID","MEMORIAL FOTOGRÁFICO"]

{"sheet":"8ª MEDIÇÃO","index":7,"n_rows":4,"n_cols":10,"rows_kept":4,"cut":false,"hidden":true,"merged":[[0,0,0,8],[1,0,1,8],[2,0,2,8]]}
["TRIBUNAL DE JUSTIÇA DE PERNAMBUCO"]
[{"$f":"#REF!","v":{"$error":"#REF!"}}]
["MEMÓRIA DE CALCULO - 8ª MEDIÇÃO"]
["ITEM","DESCRIÇÃO","QUANT.","LARG.","COMP.","ALT.","TAXA","TOTAL","UNID","MEMORIAL FOTOGRÁFICO"]

{"sheet":"9ª MEDIÇÃO","index":8,"n_rows":4,"n_cols":10,"rows_kept":4,"cut":false,"hidden":true,"merged":[[0,0,0,8],[1,0,1,8],[2,0,2,8]]}
["TRIBUNAL DE JUSTIÇA DE PERNAMBUCO"]
[{"$f":"#REF!","v":{"$error":"#REF!"}}]
["MEMÓRIA DE CALCULO - 9ª MEDIÇÃO"]
["ITEM","DESCRIÇÃO","QUANT.","LARG.","COMP.","ALT.","TAXA","TOTAL","UNID","MEMORIAL FOTOGRÁFICO"]

{"sheet":"PLANILHA SINTÉTICA","index":9,"n_rows":824,"n_cols":6,"rows_kept":824,"cut":false,"hidden":false,"merged":[[2,1,2,3],[3,1,3,3],[5,1,6,1],[5,2,6,2],[1,1,1,3],[0,0,3,0],[5,4,5,5],[5,3,6,3],[4,4,4,5],[5,0,6,0],[0,1,0,3]]}
["-","TRIBUNAL DE JUSTIÇA DE PERNAMBUCO",null,null,"Nº CONTRATO:","149/2022"]
[null,"CONSTRUÇÃO DO FÓRUM DE TAMANDARÉ - PE",null,null,"-","-"]
[null,"PLANILHA DE PREÇOS UNITÁRIOS DO FÓRUM DE TAMANDARÉ",null,null,"-","-"]
[null,"-",null,null,"VALOR DO CONTRATO:",4476376.518205001]
["-","-","-","-","BDI: 19,16%"]
["ITEM","DESCRIÇÃO","UN","QUANT. TOTAL","TOTAL"]
[null,null,null,null,"P. UNIT","P. TOTAL"]
["1.0","PROJETOS E ART´S","-","-","-","-"]
["1.1","ART Execução de Obra","un",1,288.77,{"$f":"E9*D9","v":288.77}]
["1.2","Elaboração de Projeto Executivo de Terraplanagem, Pavimentação e Drenagem, inclusive levantamento plani-altimétrico, estudo geotécnico do solo e ART.","un",1,9648.77,{"$f":"E10*D10","v":9648.77}]
["1.3","Elaboração do PGRCC - Plano de Gerenciamento de Resíduos da Construção Civil.","un",1,2709.16,{"$f":"E11*D11","v":2709.16}]
["1.4","Controle Tecnológico do Concreto com ensaio de compressão de corpos de prova cilíndricos (NBR 5739)/2007, com transporte para o laboratório realizado pelo cliente.","un",124,15.81,{"$f":"E12*D12","v":1960.44}]
["2.0","ADMINISTRAÇÃO DA OBRA / MAQUINAS E EQUIPAMENTOS","-","-","-","-"]
["2.1","Administração local pelo período da Obra.","un/mês",12,48127.48,{"$f":"E14*D14","v":577529.76}]
["2.2","Transporte horizontal  com jerica de 60l, de massa/ granel.","m³xKm",16.75,1491.35,{"$f":"E15*D15","v":24980.112499999999}]
["2.3","Taxa de descarte resíduos da construção civil.","ton.",39,40.85,{"$f":"E16*D16","v":1593.15}]
["2.4","Locação de  andaime metálico tubular tipo torre, com plataforma metálica, guarda corpo metálico, escada, inclusive montagem e desmontagem.","mxmês",162.80000000000001,33.75,{"$f":"E17*D17","v":5494.5}]
["3.0","SERVIÇOS PRELIMINARES","-","-","-","-"]
["3.1","Mobilização da obra (pessoal, máquinas e equipamentos).","un",1,1698.1,{"$f":"E19*D19","v":1698.1}]
["3.2","Levantamento topográfico planimétrico cadastral.","m²",5584.5,0.29000000000000004,{"$f":"E20*D20","v":1619.5050000000001}]
["3.3","Limpeza mecanizada de camada vegetal, vegetação e pequenas árvores (diâmetro de tronco menor que 0,20m), com trator de esteiras.","m²",5584.5,0.25,{"$f":"E21*D21","v":1396.125}]
["3.4","Remoção de metralha em caminhão basculante D.M.T. 6 Km, inclusive carga e descarga mecânica.","m³",279.3,15.809999999999999,{"$f":"E22*D22","v":4415.7330000000002}]
["3.5","Locação convencional de obra, utilizando gabarito de tábuas corridas pontaletadas a cada 2,00m - 2 utilizações.","m",122.1,53.9,{"$f":"E23*D23","v":6581.19}]
["3.6","Rebaixamento com ponteiras filtrantes (01 conjunto - 25uni), inclusive grupo gerador 80 kva - aluguel mensal","mês",3,8600.17,{"$f":"E24*D24","v":25800.510000000002}]
["4.0","CANTEIRO DE OBRA","-","-","-","-"]
["4.1","Placa de obra em lona plástica  impressão digital alta resolução com acabamento em ilhós, fixação em abraçadeiras de nylon, estrutura em ferro galvanizado e suporte em pontaletes de madeira.","m²",4,372.99,{"$f":"E26*D26","v":1491.96}]
["4.2","Tapume com compensado de madeira. ","m²",696.4,118.78,{"$f":"E27*D27","v":82718.391999999993}]
["4.3","Ligação provisória de luz e força para obra. ","un",1,2623.5699999999997,{"$f":"E28*D28","v":2623.5699999999997}]
["4.4","Ligações provisórias de água e sanitário. ","un",1,701.01,{"$f":"E29*D29","v":701.01}]
["4.5","Fornecimento e execução de barracão aberto para apoio à produção (carpintaria, central de armação, oficina, etc.) com tesouras, telha 4mm, piso em concreto desempolado. ","m²",20,140.60999999999999,{"$f":"E30*D30","v":2812.2}]
["4.6","Construção de escritório em canteiro de obra em alvenaria, não incluso mobiliário e equipamentos.","m²",23.55,1106.9000000000001,{"$f":"E31*D31","v":26067.495000000003}]
["4.7","Construção de almoxarifado em canteiro de obra em alvenaria, incluso prateleiras. ","m²",5.3,891.06999999999994,{"$f":"E32*D32","v":4722.6709999999994}]
["4.8","Construção de refeitório em canteiro de obra em alvenaria, não incluso mobiliário e equipamentos.","m²",28.25,560.69000000000005,{"$f":"E33*D33","v":15839.492500000002}]
["4.9","Execução de sanitário e vestiário em canteiro de obra em alvenaria, não incluso mobiliário.","m²",17.7,971.6400000000001,{"$f":"E34*D34","v":17198.028000000002}]
["4.10","Fornecimento e montagem de tela de sinalização laranja (H=1,2m) fixada em montantes de ferro de 1/2\" ou em barrotes de madeira 3x3 Pol. Colocados sobre base de concreto traço 1:4:8, espaçados a cada 2 m, inclusive posterior retirada e reaproveitamento.","m",131.75,18.579999999999998,{"$f":"E35*D35","v":2447.915}]
["4.11","Fornecimento e instalação de sumidouro pré-moldado de concreto - 03 anéis h=0,50m cada, inclusive escavação.","un",1,760.45,{"$f":"E36*D36","v":760.45}]
["5.0","MOVIMENTO DE TERRA","-","-",0,"-"]
["5.1","Escavação mecanizada para bloco de coroamento ou sapata, com previsão de forma, com retroescavadeira. ","m³",472.7,50.73,{"$f":"E38*D38","v":23980.070999999996}]
["5.2","Escavação manual em terra até 1,50 m de profundidade, sem escoramento.","m³",5.6,45.180000000000007,{"$f":"E39*D39","v":253.00800000000001}]
["5.3","Escavação mecânica valas em qualquer tipo de solo exceto rocha, prof. 0<h<4m.","m³",166.2,31.13,{"$f":"E40*D40","v":5173.8059999999996}]
["5.4","Escavação mecânica de vala em material de primeira categoria até 3,0m de profundidade, sem escoramento.","m³",77.5,7.7700000000000005,{"$f":"E41*D41","v":602.17500000000007}]
["5.5","Reaterro manual apiloado com soquete.","m³",537,54.180000000000007,{"$f":"E42*D42","v":29094.660000000003}]
["5.6","Remoção de material de primeira categoria em caminhão basculante, D.M.T. 6 Km, inclusive carga manual e descarga mecânica.","m³",235.6,55.61,{"$f":"E43*D43","v":13101.716}]
["5.7","Execução de aterro abrangendo espalhamento homogeneização, umedecimento e compactação mecânica em camadas de 20cm de espessura, inclusive o fornecimento do barro proveniente de jazida a uma distância máxima de 12Km.","m³",587.6,74.89,{"$f":"E44*D44","v":44005.364000000001}]
["5.8","Transporte horizontal  com jerica de 60l, de massa/ granel.","m³xKm",7.5,1491.35,{"$f":"E45*D45","v":11185.125}]
["6.0","INFRAESTRUTURA","-","-",0,"-"]
["6.1","Concreto magro para lastro, traço 1:4, 5:4, 5 (cimento/ areia média/ brita 1)  - preparo mecânico com betoneira 400 L. ","m³",12.5,345.91999999999996,{"$f":"E47*D47","v":4323.9999999999991}]
["6.2","Fabricação, montagem e desmontagem de fôrma para sapata, em chapa de madeira compensada resinada, e=17 mm, 4 utilizações.","m²",131,202.26999999999998,{"$f":"E48*D48","v":26497.37}]
["6.3","Fabricação, montagem e desmontagem de fôrma para viga baldrame, em chapa de madeira compensada resinada, e=17 mm, 4 utilizações. ","m²",338.2,95.69,{"$f":"E49*D49","v":32362.357999999997}]
["6.4","Fabricação, montagem e desmontagem de fôrma para paredes de reservatório, em chapa de madeira compensada resinada, e = 17 mm, 2 utilizações. ","m²",165.7,130.99,{"$f":"E50*D50","v":21705.043000000001}]
["6.5","Armação de bloco, viga baldrame e sapata utilizando aço ca-60 de 5 mm - montagem.","kg",419,20.48,{"$f":"E51*D51","v":8581.1200000000008}]
["6.6","Armação de bloco, viga baldrame ou sapata utilizando aço ca-50 de 8 mm - montagem. ","kg",772.9,17.2,{"$f":"E52*D52","v":13293.88}]
["6.7","Armação de bloco, viga baldrame ou sapata utilizando aço ca-50 de 10 mm - montagem. ","kg",1481.9,15.370000000000001,{"$f":"E53*D53","v":22776.803000000004}]
["6.8","Armação de bloco, viga baldrame ou sapata utilizando aço ca-50 de 12,5 mm - montagem. ","kg",205.85,12.8,{"$f":"E54*D54","v":2634.88}]
["6.9","Armação de bloco, viga baldrame ou sapata utilizando aço ca-50 de 16 mm - montagem. ","kg",133.44,12,{"$f":"E55*D55","v":1601.28}]
["6.10","Concretagem de sapatas, FCK 35 Mpa com adição de metacaulim, e uso de bomba lançamento, adensamento e acabamento.","m³",29.43,1293.46,{"$f":"E56*D56","v":38066.527800000003}]
["6.11","Concretagem de sapatas, FCK 35 Mpa , com uso de bomba \u0096 lançamento, adensamento e acabamento.","m³",4.5,504.07000000000005,{"$f":"E57*D57","v":2268.3150000000001}]
["6.12","Concreto estrutural, FCK 20 Mpa, condição B (NBR-12655), lançado em estruturas e adensado. ","m³",2.71,765.18000000000006,{"$f":"E58*D58","v":2073.6378}]
["6.13","Concretagem de blocos de coroamento e vigas baldrames, Fck 35 Mpa com adição de metacaulim, com uso de bomba \u0096 lançamento, adensamento e acabamento. (Bloco e radier)","m³",20.65,1285.25,{"$f":"E59*D59","v":26540.412499999999}]
["6.14","Graute Fgk=30 Mpa; traço 1:0,9:1,2:0,6 (em massa seca de cimento/ areia grossa/ brita 0/ aditivo) - preparo mecânico com betoneira 400 l. ","m³",3.69,577.17999999999995,{"$f":"E60*D60","v":2129.7941999999998}]
["6.15","Montagem e desmontagem de fôrma de laje maciça, pé-direito simples, em madeira serrada, 4 utilizações. ","m²",30.81,149.31,{"$f":"E61*D61","v":4600.2411000000002}]
["6.16","Montagem e desmontagem de fôrma de pilares retangulares e estruturas similares, pé-direito simples, em chapa de madeira compensada resinada, 4 utilizações. ","m²",7.2,77.52000000000001,{"$f":"E62*D62","v":558.14400000000012}]
["6.17","Montagem e desmontagem de fôrma de viga, escoramento metálico, pé-direito simples, em chapa de madeira resinada, 4 utilizações.","m²",12.16,117.1,{"$f":"E63*D63","v":1423.9359999999999}]
["6.18","Armação laje de uma estrutura convencional de concreto armado em um edifício de múltiplos pavimentos utilizando aço CA-50 de 6.3 mm - Montagem. ","kg",53,15.22,{"$f":"E64*D64","v":806.66000000000008}]
["6.19","Armação de laje de uma estrutura convencional de concreto armado em um edifício de múltiplos pavimentos utilizando aço CA-50 de 8.0 mm - Montagem. ","kg",20,14.39,{"$f":"E65*D65","v":287.8}]
["6.20","Armação de estruturas de concreto armado, exceto vigas, pilares, lajes e fundações, utilizando aço ca-60 de 5,0 mm - montagem. ","kg",77.11,18.96,{"$f":"E66*D66","v":1462.0056}]
["6.21","Armação de estruturas de concreto armado, exceto vigas, pilares, lajes e fundações, utilizando aço ca-50 de 6,3 mm - montagem. ","kg",609,17.670000000000002,{"$f":"E67*D67","v":10761.03}]
["6.22","Armação de estruturas de concreto armado, exceto vigas, pilares, lajes e fundações, utilizando aço ca-50 de 8,0 mm - montagem. ","kg",1341.9,16.25,{"$f":"E68*D68","v":21805.875}]
["6.23","Armação de estruturas de concreto armado, exceto vigas, pilares, lajes e fundações, utilizando aço ca-50 de 10,0 mm - montagem.","kg",459.81,14.59,{"$f":"E69*D69","v":6708.6279000000004}]
["6.24","Armação de estruturas de concreto armado, exceto vigas, pilares, lajes e fundações, utilizando aço ca-50 de 12,5 mm - montagem. ","kg",184,12.12,{"$f":"E70*D70","v":2230.08}]
["6.25","Armação de estruturas de concreto armado, exceto vigas, pilares, lajes e fundações, utilizando aço ca-50 de 16,0 mm - montagem. ","kg",286,11.42,{"$f":"E71*D71","v":3266.12}]
["6.26","Armação de estruturas de concreto armado, exceto vigas, pilares, lajes e fundações, utilizando aço ca-50 de 20,0 mm - montagem. ","kg",40,12.83,{"$f":"E72*D72","v":513.20000000000005}]
["6.27","Concretagem de vigas e lajes, Fck=35 Mpa, para lajes maciças ou nervuradas com uso de bomba em edificação com área média de lajes maior que 20 m² - incluso aditivo liquido impermeabilizante cristalizante - lançamento, adensamento e acabamento. ","m³",14.08,597.41,{"$f":"E73*D73","v":8411.532799999999}]
["6.28","Concretagem de edificações (paredes e lajes) feitas com sistema de formas manuseáveis, com concreto usinado bombeável FCK 35 Mpa - Lançamento, adensamento e acabamento.","m³",9.64,488.06,{"$f":"E74*D74","v":4704.8984}]
["6.29","Concretagem de pilares, Fck = 35 Mpa, com uso de bomba em edificação com seção média de pilares menor ou igual a 0,25 m² - lançamento, adensamento e acabamento.","m³",2.62,490.91,{"$f":"E75*D75","v":1286.1842000000001}]
["6.30","Execução de laje tipo treliçada β 13, incluindo vigotas treliçadas com EPS, escoramento.","m²",7.15,157.85,{"$f":"E76*D76","v":1128.6275000000001}]
["6.31","Regularização piso com argamassa traço 1:4, e=3cm, para revestimento de piso.","m²",22.58,36.24,{"$f":"E77*D77","v":818.29919999999993}]
["7.0","ALVENARIA DE  FUNDAÇÃO ","-","-",0,"-"]
["7.1","Alvenaria de tijolos de 8 furos, assentados e rejuntados com argamassa de cimento e areia no traço 1:6  -  1 vez.","m²",213.33,114.14,{"$f":"E79*D79","v":24349.486200000003}]
["7.2","Alvenaria de embasamento com bloco estrutural de concreto, de 14x19x29cm e argamassa de assentamento com preparo em betoneira. (Muro e mureta)","m³",22,839.31,{"$f":"E80*D80","v":18464.82}]
["7.3","Alvenaria de embasamento/fundação em blocos de concreto 19x19x39, FCK 4,5Mpa.","m",5.64,21.08,{"$f":"E81*D81","v":118.89119999999998}]
["7.4","Cinta de amarração de alvenaria moldada in loco com utilização de blocos canaleta. ","m",160.82,36.46,{"$f":"E82*D82","v":5863.4971999999998}]
["8.0","SUPERSTRUTURA (PILAR / VIGA/ LAJE - FORMA, ARMAÇÃO E CONCRETO)","-","-",0,"-"]
["8.1","Montagem e desmontagem de fôrma de pilares retangulares e estruturas similares, pé-direito simples, em chapa de madeira compensada resinada, e = 17 mm, 4 utilizações. ","m²",137.75,77.52000000000001,{"$f":"E84*D84","v":10678.380000000001}]
["8.2","Armação de pilar ou viga de uma estrutura convencional de concreto armado em um edifício de múltiplos pavimentos utilizando aço CA-60 de 5.0 mm - Montagem. ","kg",461.44,17.350000000000001,{"$f":"E85*D85","v":8005.9840000000004}]
["8.3","Armação de pilar ou viga de uma estrutura convencional de concreto armado em um edifício de múltiplos pavimentos utilizando aço CA-50 de 6.3 mm - Montagem. ","kg",50.55,16.440000000000001,{"$f":"E86*D86","v":831.04200000000003}]
["8.4","Armação de pilar ou viga de uma estrutura convencional de concreto armado em um edifício de múltiplos pavimentos utilizando aço CA-50 de 8.0 mm - Montagem. ","kg",558.05999999999995,15.399999999999999,{"$f":"E87*D87","v":8594.123999999998}]
["8.5","Armação de pilar ou viga de uma estrutura convencional de concreto armado em um edifício de múltiplos pavimentos utilizando aço CA-50 de 10.0 mm - Montagem. ","kg",947.14,13.9,{"$f":"E88*D88","v":13165.246000000001}]
["8.6","Armação de pilar ou viga de uma estrutura convencional de concreto armado em um edifício de múltiplos pavimentos utilizando aço CA-50 de 12.5 mm - Montagem. ","kg",760.69,11.61,{"$f":"E89*D89","v":8831.6108999999997}]
["8.7","Armação de pilar ou viga de uma estrutura convencional de concreto armado em um edifício de múltiplos pavimentos utilizando aço CA-50 de 16.0 mm - Montagem. ","kg",278.18,11.07,{"$f":"E90*D90","v":3079.4526000000001}]
["8.8","Concretagem de pilares, Fck = 35 mpa, com uso de bomba em edificação com seção média de pilares menor ou igual a 0,25 m² - lançamento, adensamento e acabamento.","m³",7.06,492.1,{"$f":"E91*D91","v":3474.2260000000001}]
["8.9","Montagem e desmontagem de fôrma de viga, escoramento metálico, pé-direito simples, em chapa de madeira resinada, 2 utilizações. ","m²",377.68,148.74,{"$f":"E92*D92","v":56176.123200000002}]
["8.10","Montagem e desmontagem de fôrma de laje maciça com área média maior que 20 m², pé-direito simples, em chapa de madeira compensada resinada e = 17 mm, 2 utilizações. ","m²",37.97,52.03,{"$f":"E93*D93","v":1975.5790999999999}]
["8.11","Montagem e desmontagem de fôrma de laje nervurada com cubeta e assoalho com área média maior que 20 m², pé-direito simples, em chapa de madeira compensada resinada, 8 utilizações, excluso a locação das formas plásticas","m²",693.51,40.519999999999996,{"$f":"E94*D94","v":28101.025199999996}]
["8.12","Armação laje de uma estrutura convencional de concreto armado em um edifício de múltiplos pavimentos utilizando aço CA-50 de 6.3 mm - Montagem. ","kg",1042.95,15.22,{"$f":"E95*D95","v":15873.699000000001}]
["8.13","Armação de laje de uma estrutura convencional de concreto armado em um edifício de múltiplos pavimentos utilizando aço CA-50 de 8.0 mm - Montagem. ","kg",474.24,14.39,{"$f":"E96*D96","v":6824.3136000000004}]
["8.14","Armação de laje de uma estrutura convencional de concreto armado em um edifício de múltiplos pavimentos utilizando aço ca-50 de 10,0 mm - montagem. ","kg",64,13.170000000000002,{"$f":"E97*D97","v":842.88000000000011}]
["8.15","Armação de laje de uma estrutura convencional de concreto armado em um edifício de múltiplos pavimentos utilizando aço CA-50 de 12.5 mm - Montagem. ","kg",147.18,11.07,{"$f":"E98*D98","v":1629.2826000000002}]
["8.16","Armação em tela de aço soldada nervurada q-61, aço ca-60, 3,4mm, malha 15x15cm","kg",867.98,12.19,{"$f":"E99*D99","v":10580.6762}]
["8.17","Concretagem de vigas e lajes, Fck=35 Mpa, para lajes maciças ou nervuradas com uso de bomba em edificação com área média de lajes maior que 20 m² - incluso aditivo líquido impermeabilizante cristalizante - lançamento, adensamento e acabamento. ","m³",83.15,597.41,{"$f":"E100*D100","v":49674.641499999998}]
["8.18","Execução de laje tipo treliçada β 17, incluindo vigotas treliçadas com EPS e escoramento.","m²",444.96,182.72,{"$f":"E101*D101","v":81303.091199999995}]
["8.19","Execução de laje tipo treliçada β 21, incluindo vigotas treliçadas com EPS, escoramento.","m²",246.47,215.81,{"$f":"E102*D102","v":53190.690699999999}]
["8.20","Execução de laje tipo treliçada β 25, incluindo vigotas treliçadas com EPS e escoramento.","m²",114.98,231.49,{"$f":"E103*D103","v":26616.720200000003}]
["9.0","VEDAÇÕES","-","-",0,"-"]
["9.1","ALVENARIA DE VEDAÇÃO","-","-",0,"-"]
["9.1.1","Alvenaria de vedação de blocos cerâmicos furados na horizontal de 9x19x19cm (espessura 9cm) e argamassa de assentamento com preparo em betoneira.","m²",782.17,83.55,{"$f":"E106*D106","v":65350.303499999995}]
["9.1.2","Fixação (encunhamento) de alvenaria de vedação com argamassa aplicada com colher. ","m",283.91000000000003,6.52,{"$f":"E107*D107","v":1851.0932}]
["9.1.3","Alvenaria de vedação de blocos vazados de concreto de 14x19x39 cm (espessura 14 cm)  e argamassa de assentamento com preparo em betoneira. ","m²",418.41,84.43,{"$f":"E108*D108","v":35326.356300000007}]
["9.1.4","Fornecimento e assentamento de telas soldadas produzidas com fio de 1,65 mm de diâmetro e malha de 15 x 15 mm, galvanizadas, com largura x comprimento de 7,5x50cm, Belgofix ou equivalente. ","un",1146,8.7100000000000009,{"$f":"E109*D109","v":9981.6600000000017}]
["9.2","VERGA-CONTRAVERGA EM CONCRETO","-","-",0,"-"]
["9.2.1","Verga pré-moldada para janelas com até 1,5 m de vão. Fornecimento e assentamento","m",19.850000000000001,42.730000000000004,{"$f":"E111*D111","v":848.19050000000016}]
["9.2.2","Verga pré-moldada para janelas com mais de 1,5 m de vão. Fornecimento e assentamento","m",57.4,54.28,{"$f":"E112*D112","v":3115.672}]
["9.2.3","Verga pré-moldada para portas com até 1,5 m de vão. ","m",25.43,32.01,{"$f":"E113*D113","v":814.01429999999993}]
["9.2.4","Verga pré-moldada para portas com mais de 1,5 m de vão. Fornecimento e assentamento. ","m",5.45,53.430000000000007,{"$f":"E114*D114","v":291.19350000000003}]
["9.2.5","Contraverga pré-moldada para vãos de até 1,5 m de comprimento. Fornecimento e assentamento. ","m",19.850000000000001,43.9,{"$f":"E115*D115","v":871.41500000000008}]
["9.2.6","Contraverga pré-moldada para vãos de mais de 1,5 m de comprimento. Fornecimento e assentamento. ","m",66.290000000000006,52.7,{"$f":"E116*D116","v":3493.4830000000006}]
["9.3","PAREDE EM DRY-WALL COM TRATAMENTO ACÚSTICO","-","-",0,"-"]
["9.3.1","Parede com placas de gesso acartonado (drywall), para uso interno, com duas faces simples e estrutura metálica com guias duplas, com vãos. (Espessura da parede 10cm)","m²",311.35000000000002,151.97,{"$f":"E118*D118","v":47315.859500000006}]
["9.3.2","Parede com placas de gesso acartonado (drywall), para uso interno, com duas faces duplas e estrutura metálica com guias duplas, com vãos. (Espessura da parede 25cm)","m²",88.483000000000004,199.38,{"$f":"E119*D119","v":17641.740539999999}]
["9.3.3","Instalação de isolamento com lã de rocha em parede drywall com densidade = 32 kg/m3, espessura =50mm","m²",488.31000000000006,57.08,{"$f":"E120*D120","v":27872.734800000002}]
["10.0","REVESTIMENTO DE PAREDE","-","-",0,"-"]
["10.1","CHAPISCO INTERNO","-","-",0,"-"]
["10.1.1","Chapisco aplicado em alvenarias e estruturas de concreto internas, com colher de pedreiro.  argamassa traço 1:3 com preparo em betoneira 400l. ","m²",1101.8499999999999,4.1400000000000006,{"$f":"E123*D123","v":4561.6590000000006}]
["10.2","EMBOÇO/ MASSA ÚNICA INTERNO","-","-",0,"-"]
["10.2.1","(Composição representativa) do serviço de emboço/massa única, traço 1:2:8, preparo mecânico, com betoneira de 400l, em paredes de ambientes internos, com execução de taliscas, para edificação habitacional multifamiliar (prédio). ","m²",889.56,39.520000000000003,{"$f":"E125*D125","v":35155.411200000002}]
["10.3","REVESTIMENTO DE PAREDE INTERNA EM PORCELANATO/CERÂMICA","-","-",0,"-"]
["10.3.1","Fornecimento e assentamento de porcelanato polido retificado, tipo A, linha Smoke, 74,0 x 74,0cm, Elizabeth ou equivalente,  assentado em PISO ou PAREDE com argamassa industrializada AC-III, com espaçamento de 2mm  e rejuntado com argamassa de rejuntamento flexível e impermeável, na cor cinza platino.","m²",149.01,98.67,{"$f":"E127*D127","v":14702.816699999999}]
["10.3.2","Fornecimento e assentamento de porcelanato ANTIDERRAPANTE retificado, tipo A, Spazzolato Vecchio HARD 84X84cm, Elizabeth ou equivalente,  assentado em PISO ou PAREDE com argamassa industrializada AC-III, com espaçamento de 2mm  e rejuntado com argamassa de rejuntamento flexível e impermeável.","m²",67.930000000000007,110.96000000000001,{"$f":"E128*D128","v":7537.5128000000013}]
["10.3.3","Fornecimento de cerâmica cor CRISTAL BRANCO da Elizabeth ou equivalente, dimensões aproximadas 5x10cm, assentada em paredes internas, com argamassa colante industrializada AC II e rejuntada com argamassa de rejuntamento flexível impermeável.","m²",229.01000000000002,86.949999999999989,{"$f":"E129*D129","v":19912.4195}]
["10.3.4","Fornecimento de revestimento 3D FABER BRANCO ANDINO 15,3x15,3cm para paredes internas, assentado com argamassa colante AC III.","m²",35.19,376.86,{"$f":"E130*D130","v":13261.7034}]
["10.3.5","Fornecimento de pastilhas de porcelana esmaltadas 5x5cm  Atlas SG8409 Rubi ou equivalente, assentada com argamassa colante AC III Quartzolit ou equivalente e rejuntada com argamassa de rejuntamento flexível Quartzolit ou equivalente, alinhada a prumo.","m²",21.47,217.75,{"$f":"E131*D131","v":4675.0924999999997}]
["11.0","REVESTIMENTO DE PAREDE EXTERNA","-","-",0,"-"]
["11.1","CHAPISCO EXTERNO E FUNDAÇÃO","-","-",0,"-"]
["11.1.1","Chapisco aplicado em alvenarias e estruturas de concreto, com colher de pedreiro.  argamassa traço 1:3 com preparo em betoneira 400l. (FUNDAÇÃO)","m²",338.2,4.1400000000000006,{"$f":"E134*D134","v":1400.1480000000001}]
["11.1.2","Chapisco aplicado em alvenaria (com presença de vãos) e estruturas de concreto de fachada, com colher de pedreiro.  argamassa traço 1:3 com preparo em betoneira 400l. (FACHADA)","m²",1832.26,9.27,{"$f":"E135*D135","v":16985.050199999998}]
["11.2","EMBOÇO / MASSA UNICA EXTERNO","-","-",0,"-"]
["11.2.1","Emboço ou massa única em argamassa traço 1:2:8, preparo mecânico com betoneira 400 l, aplicada manualmente em panos de fachada com presença de vãos, espessura de 25 mm. (FACHADA)","m²",1834.81,60.53,{"$f":"E137*D137","v":111061.0493}]
["11.3","REVESTIMENTO DE PAREDE EXTERNA","-","-",0,"-"]
["11.3.1","Fornecimento e assentamento de pedra Itacolomi do Norte (30x5cm), tipo canjiquinha, assentada com argamassa de cimento e areia no traço 1:6.","m²",159.12,114.63000000000001,{"$f":"E139*D139","v":18239.925600000002}]
["11.3.2","Fornecimento e assentamento de pedra Itacolomi (*30x20cm*), assentada com argamassa de cimento e areia no traço 1:6.","m²",43.550000000000004,88.78,{"$f":"E140*D140","v":3866.3690000000006}]
["11.3.3","Fornecimento de cerâmica cor CRISTAL BRANCO da Elizabeth ou equivalente, dimensões aproximadas 5x10cm, assentada em paredes externas, com argamassa colante industrializada AC III e rejuntada com argamassa de rejuntamento flexível impermeável. (FACHADA, LIXEIRA, RAMPAS E ESCADAS)","m²",491.82,86.949999999999989,{"$f":"E141*D141","v":42763.748999999996}]
["11.3.4","Fornecimento de pastilhas de porcelana esmaltadas 5x5cm  Atlas SG8409 Rubi ou equivalente, assentada com argamassa colante AC III Quartzolit ou equivalente e rejuntada com argamassa de rejuntamento flexível Quartzolit ou equivalente, alinhada a prumo.","m²",109.75,217.75,{"$f":"E142*D142","v":23898.0625}]
["11.3.5","Fornecimento de pastilhas de porcelana esmaltadas 5x5cm Atlas SG8406 Ardósia ou equivalente, assentada com argamassa colante AC III Quartzolit ou equivalente e rejuntada com argamassa de rejuntamento flexível Quartzolit ou equivalente, alinhada a prumo.","m²",53.84,231.45,{"$f":"E143*D143","v":12461.268}]
["11.3.6","Cerâmica 5x10cm Elizabeth ou equivalente, lux grafite, assentadas horizontalmente com argamassa colante AC III Quartzolit ou equivalente e rejuntadas com argamassa de rejuntamento flexível Quartzolit ou equivalente. ","m²",202.26,96.579999999999984,{"$f":"E144*D144","v":19534.270799999995}]
["11.3.7","Fornecimento e aplicação de junta de mastique, inclusive preenchimento da junta com tarucel 20mm.","m",137,67.7,{"$f":"E145*D145","v":9274.9}]
["12.0","REVESTIMENTO  DE PISO INTERNO","-","-",0,"-"]
["12.1","CONCRETO DO PISO DA LAMINA DE CONSTRUÇÃO","-","-",0,"-"]
["12.1.1","Concretagem de radier, piso de concreto ou laje sobre solo, Fck 15 Mpa usinado, espessura de 5 cm - lançamento, adensamento e acabamento. ","m³",35.1,374.99,{"$f":"E148*D148","v":13162.149000000001}]
["12.2","CONTRAPISO ","-","-","-","-"]
["12.2.1","Contrapiso em argamassa traço 1:4 (cimento e areia), preparo mecânico com betoneira 400 l, aplicado em áreas secas sobre laje, aderido, acabamento não reforçado, espessura 3cm. ","m²",597.36,37.18,{"$f":"E150*D150","v":22209.844799999999}]
["12.2.2","Contrapiso em argamassa traço 1:4 (cimento e areia), preparo mecânico com betoneira 400 l, aplicado em áreas molhadas sobre laje, aderido, acabamento não reforçado, espessura 3cm. ","m²",174.4,49.75,{"$f":"E151*D151","v":8676.4}]
["12.3","REVESTIMENTO DE PISO E RODAPÉ","-","-",0,"-"]
["12.3.1","Fornecimento e assentamento de porcelanato retificado, tipo A, Spazzolato Vecchio ACETINADO 84X84cm, Elizabeth ou equivalente,  assentado em PISO ou PAREDE com argamassa industrializada AC-III, com espaçamento de 2mm  e rejuntado com argamassa de rejuntamento flexível e impermeável.","m²",570.35,106.53,{"$f":"E153*D153","v":60759.385500000004}]
["12.3.2","Fornecimento e assentamento de rodapé em Porcelanato retificado, tipo A, Spazzolato Vecchio ACETINADO 84x84cm, Elizabeth ou equivalente com 15cm, assentado com argamassa colante industrializada ACIII e rejuntada com argamassa de rejuntamento flexível e impermeável.","m",25.09,47.6,{"$f":"E154*D154","v":1194.2840000000001}]
["12.3.3","Fornecimento e assentamento de rodapé em Porcelanato retificado, tipo A, Spazzolato Vecchio ACETINADO 84x84cm, Elizabeth ou equivalente com 7cm, assentado com argamassa colante industrializada ACIII e rejuntada com argamassa de rejuntamento flexível e impermeável.","m",371.29,22.18,{"$f":"E155*D155","v":8235.2121999999999}]
["12.3.4","Fornecimento e assentamento de porcelanato ANTIDERRAPANTE retificado, tipo A, Spazzolato Vecchio HARD 84X84cm, Elizabeth ou equivalente,  assentado em PISO ou PAREDE com argamassa industrializada AC-III, com espaçamento de 2mm  e rejuntado com argamassa de rejuntamento flexível e impermeável. ","m²",63.5,110.96000000000001,{"$f":"E156*D156","v":7045.9600000000009}]
["12.3.5","Fornecimento e assentamento de rodapé em perfil \"U\" metálico, *15mm.","m²",87,35.480000000000004,{"$f":"E157*D157","v":3086.76}]
["13.0","PISO EXTERNO","-","-",0,"-"]
["13.1","CONTRAPISO ","-","-",0,"-"]
["13.1.1","Contrapiso em argamassa traço 1:4 (cimento e areia), preparo mecânico com betoneira 400 l, aplicado em áreas molhadas sobre laje, aderido, acabamento não reforçado, espessura 3cm. (Mastro)","m²",9.81,49.75,{"$f":"E160*D160","v":488.04750000000001}]
["13.2","REVESTIMENTO DE PISO EXTERNO","-","-",0,"-"]
["13.2.1","Fornecimento e assentamento de porcelanato ANTIDERRAPANTE retificado, tipo A, Spazzolato Vecchio HARD 84X84cm, Elizabeth ou equivalente,  assentado em PISO ou PAREDE com argamassa industrializada AC-III, com espaçamento de 2mm  e rejuntado com argamassa de rejuntamento flexível e impermeável. (escada e rampa de acesso)","m²",91.68,110.96000000000001,{"$f":"E162*D162","v":10172.812800000002}]
["14.0","REVESTIMENTO  DE TETO","-","-",0,"-"]
["14.1","FORRO REMOVIVEL ","-","-",0,"-"]
["14.1.1","Fornecimento e instalação de forro removível em painéis de lã mineral, THERMATEX STAR  da AMF ou equivalente, nas dimensões de 625x1250mm, espessura de 15mm, estruturado com perfis metálicos com acabamento na cor branca. Ver paginação do forro.","m²",595.70000000000005,107.02000000000001,{"$f":"E165*D165","v":63751.814000000013}]
["14.2","CHAPISCO INTERNO EM TETO","-","-",0,"-"]
["14.2.1","Chapisco aplicado no teto, com rolo para textura acrílica. argamassa traço 1:4 e emulsão polimérica (adesivo) com preparo em betoneira 400l. (custódia)","m²",53.01,5.97,{"$f":"E167*D167","v":316.46969999999999}]
["14.3","EMBOÇO / MASSA ÚNICA INTERNA EM TETO","-","-",0,"-"]
["14.3.1","Massa única, para recebimento de pintura, em argamassa traço 1:2:8, preparo mecânico com betoneira 400l, aplicada manualmente em teto, espessura de 20mm, com execução de taliscas. (custódia)","m²",53.01,49.489999999999995,{"$f":"E169*D169","v":2623.4648999999995}]
["15.0","IMPERMEABILIZAÇÃO (COBERTA E RESERVATÓRIOS)","-","-",0,"-"]
["15.1","Impermeabilização de superfície com manta asfáltica, uma camada, inclusive aplicação de primer asfáltico, e=4mm.","m²",376.37,109.83,{"$f":"E171*D171","v":41336.717100000002}]
["15.2","Impermeabilização de superfície com argamassa polimérica/ membrana acrílica, 3 demãos.","m²",84.9,29.130000000000003,{"$f":"E172*D172","v":2473.1370000000002}]
["15.3","Regularização piso com argamassa traço 1:4, e=3cm, para revestimento de piso.","m²",200.81,36.24,{"$f":"E173*D173","v":7277.3544000000002}]
["16.0","PINTURA","-","-",0,"-"]
["16.1","PINTURA DE PAREDE INTERNA","-","-",0,"-"]
["16.1.1","Aplicação de fundo selador acrílico em paredes, uma demão. ","m²",951.37000000000012,2.75,{"$f":"E176*D176","v":2616.2675000000004}]
["16.1.2","Aplicação e lixamento de massa PVA em paredes, duas demãos. ","m²",951.37000000000012,14.809999999999999,{"$f":"E177*D177","v":14089.789700000001}]
["16.1.3","Aplicação manual de pintura com tinta látex acrílica em paredes, duas demãos.","m²",951.37000000000012,14.969999999999999,{"$f":"E178*D178","v":14242.008900000001}]
["16.2","PINTURA EM TETO ","-","-",0,"-"]
["16.2.1","Aplicação de fundo selador acrílico em teto, uma demão. ","m²",15.86,3.2199999999999998,{"$f":"E180*D180","v":51.069199999999995}]
["16.2.2","Aplicação e lixamento de massa látex em teto, duas demãos. ","m²",15.86,28.44,{"$f":"E181*D181","v":451.05840000000001}]
["16.2.3","Aplicação manual de pintura com tinta látex acrílica em teto, duas demãos. ","m²",15.86,17.099999999999998,{"$f":"E182*D182","v":271.20599999999996}]
["16.3","PINTURA DAS CAIXAS EXTERNAS EM CONCRETO  E TAMPA DO RESERVATÓRIO INFERIOR","-","-",0,"-"]
["16.3.1","Pintura de piso com tinta acrílica, aplicação manual, 2 demãos, incluso fundo preparador. (Vaga especial e tampas)","m²",34.199999999999996,18.93,{"$f":"E184*D184","v":647.40599999999995}]
["16.3.2","Demarcação com tinta acrílica para pisos de faixas de trincha de 20cm de largura. (Estacionamento).","m",464.57,30.72,{"$f":"E185*D185","v":14271.590399999999}]
["16.4","PINTURA ESQUADRIA EM FERRO","-","-",0,"-"]
["16.4.1","Pintura esmalte sintético, 2 (duas) demãos, para esquadria de ferro, com aplicação de fundo anticorrosivo.","m²",196.85999999999999,42.989999999999995,{"$f":"E187*D187","v":8463.0113999999976}]
["16.5","PINTURA EXTERNA","-","-",0,"-"]
["16.5.1","Aplicação manual de pintura a cal (caiação) em paredes, duas demãos.","m²",437.94,7.6,{"$f":"E189*D189","v":3328.3440000000001}]
["17.0","MÁRMORES E GRANITOS ","-","-",0,{"$f":"E190*D190","v":{"$error":"#VALUE!"}}]
["17.1","BALCÃO E BANCADA EM GRANITO ","-","-",0,"-"]
["17.1.1","Fornecimento e instalação de balcão em granito natural polido Cinza Ocre (2,36 x 0,55) com respaldo e testeira conforme detalhe do wc masculino.","un",1,1070.74,{"$f":"E192*D192","v":1070.74}]
["17.1.2","Fornecimento e instalação de balcão em granito natural polido Cinza Ocre (3,02 x 0,55) com respaldo e testeira, banco de granito medindo (2,29x0,50m até 0,80m), conforme detalhe do wc feminino.","un",1,1829.52,{"$f":"E193*D193","v":1829.52}]
["17.1.3","Fornecimento e instalação de balcão em granito natural polido Cinza Ocre (1,00 x 0,50) com respaldo e testeira conforme detalhe BG10 do wc Promotoria, Jurados e Juiz.","un",3,503.35,{"$f":"E194*D194","v":1510.0500000000002}]
["17.1.4","Fornecimento e instalação de montante em granito natural bipolido Cinza Ocre com 2cm de espessura, h=1,80m, engastado em parede/piso, acabamento reto, para divisão dos banheiros e mictório, conforme detalhes.","m²",9.3000000000000007,415.22999999999996,{"$f":"E195*D195","v":3861.6390000000001}]
["17.1.5","Fornecimento e instalação de balcão em granito natural polido Cinza Ocre com 3 arestas medindo 2,10, 3,00 e 1,50m e alturas de 0,75 e 1,04m, conforme detalhe do balcão da recepção.","un",1,6440.36,{"$f":"E196*D196","v":6440.36}]
["17.1.6","Fornecimento e instalação de balcão em granito natural polido Cinza Ocre medindo 3,04  e duas alturas de 0,75 e 1,10 conforme detalhe do balcão da secretaria.","un",1,2367.5700000000002,{"$f":"E197*D197","v":2367.5700000000002}]
["17.1.7","Fornecimento e instalação de mesa em granito natural polido verde ubatuba e medindo 1,60 x 0,60 conforme detalhe BG02 da mesa de defesa e promotor.","un",2,1235.46,{"$f":"E198*D198","v":2470.92}]
["17.1.8","Fornecimento e assentamento de bancada em granito polido verde ubatuba espessura de 2cm ,  tampo superior com as medidas de (1,12x0,65x2 + 1,30x0,60)m com acabamento frontal reto duplo e paredes externas revestidas em granito - Conforme Detalhe BG01 (Bancada do Juiz - Salão do Júri) - 01 UNID. ","un",1,3243.85,{"$f":"E199*D199","v":3243.85}]
["17.1.9","Fornecimento e assentamento de bancada em granito polido verde ubatuba espessura de 2cm ,  tampo superior com as medidas de (4,90x0,60)m com acabamento reto duplo em ambas as faces e paredes revestidas em granito - Conforme Detalhe BG03 (Bancada dos Jurados - Salão do Júri) - 01 UNID.  ","un",1,4220.8100000000004,{"$f":"E200*D200","v":4220.8100000000004}]
["17.1.10","Fornecimento e assentamento de divisória em granito polido verde Ubatuba espessura de 2cm,  medida do tampo superior de (4,98x0,20)m com acabamento reto duplo em todas as faces e paredes revestidas em granito - Conforme Detalhe BG04 (Divisória dos Jurados - Salão do Júri) - 01 UNID. ","un",1,3508.88,{"$f":"E201*D201","v":3508.88}]
["17.1.11","Fornecimento e assentamento de rodapé/espelho em granito polido Verde Ubatuba, com espessura de 2cm e alturas conforme projeto, acabamento reto, rejuntado com argamassa ACIII.","m²",2.96,388.32,{"$f":"E202*D202","v":1149.4271999999999}]
["17.1.12","Fornecimento e instalação de balcão em granito natural polido Cinza Ocre 3,35 x 0,55 com respaldo e testeira conforme detalhe BG09 da bancada da copa. ","un",1,1193.6300000000001,{"$f":"E203*D203","v":1193.6300000000001}]
["17.1.13","Fornecimento e assentamento de granito cinza ocre, acabamento reto, rejuntado com argamassa ACIII. (Espelho da escada e lateral da rampa)","m²",22.43,388.32,{"$f":"E204*D204","v":8710.0175999999992}]
["17.1.14","Fornecimento e instalação de Friso em granito polido Cinza Ocre com 4cm, acabamento reto. ","m",61.82,53.59,{"$f":"E205*D205","v":3312.9338000000002}]
["17.1.15","Fornecimento e instalação de soleira em granito Cinza Ocre, largura 0,15m, conforme detalhe.","m",20,68.44,{"$f":"E206*D206","v":1368.8}]
["17.1.16","Fornecimento e assentamento de moldura em granito polido verde Ubatuba, com largura até 20cm, acabamento reto, conforme detalhe. ","m",6.24,105,{"$f":"E207*D207","v":655.20000000000005}]
["17.1.17","Fornecimento e assentamento de granito flameado Cinza Ocre  (laterais externas base inferior 15cm)","m²",2.9,390.1,{"$f":"E208*D208","v":1131.29}]
["18.0","ESQUADRIAS ","-","-",0,{"$f":"E209*D209","v":{"$error":"#VALUE!"}}]
["18.1","ESQUADRIAS DE MADEIRA E ACESSÓRIOS","-","-",0,{"$f":"E210*D210","v":{"$error":"#VALUE!"}}]
["18.1.1","Kit de porta-pronta de madeira em acabamento em primer para pintura conforme projeto, folha média ou pesada, 90x210cm, fixação com preenchimento total de espuma expansiva - fornecimento e instalação.","UN",25,520.77,{"$f":"E211*D211","v":13019.25}]
["18.1.2","PM02 - Kit de porta-pronta de madeira, acabamento para pintura, folha leve ou média, 70x210cm, fixação com preenchimento parcial de espuma expansiva - fornecimento e instalação.","un",1.5,419.24,{"$f":"E212*D212","v":628.86}]
["18.1.3","Kit de porta-pronta de madeira em acabamento em primer para pintura conforme projeto, folha média ou pesada, 90x210cm, fixação com preenchimento total de espuma expansiva, inclusive placa de inox na base dos dois lados h=0,40m, banheiro PPNE,  fornecimento e instalação. - fornecimento e instalação.","un",6.86,666.2600000000001,{"$f":"E213*D213","v":4570.5436000000009}]
["18.2","PORTA INTERNA DOS WC´S","-","-",0,"-"]
["18.2.1","Fornecimento e assentamento de porta em laminado estrutural painel TS- 10mm, a prova d'água revestido nas duas faces com laminado melamínico texturizado na cor BEGE / CINZA CLARO. Estrutura em perfis de alumínio anodizado natural fosco, fechadura tipo lingueta com indicação livre/ocupado em nylon, ref.: Neocom ou equivalente. (dim.=0,60x1,60m) ","m²",6.93,848.14,{"$f":"E215*D215","v":5877.6102000000001}]
["18.2.2","Fornecimento e assentamento de divisória sanitária em laminado estrutural painel TS-10mm a prova d'água, revestido nas duas faces com laminado melamínico texturizado na cor BEGE/ CINZA CLARO. Estrutura em perfis de alumínio anodizado natural fosco ref.: Neocom ou equivalente. ","m²",21.55,862.94,{"$f":"E216*D216","v":18596.357000000004}]
["18.3","ESQUADRIA DE ALUMÍNIO E VIDRO","-","-",0,"-"]
["18.3.1","PA01 - Fornecimento  e assentamento de porta dupla em alumínio anodizado bronze, tipo veneziana, de giro, medindo (1,90 x 2,10m)","m²",3.9899999999999998,307,{"$f":"E218*D218","v":1224.9299999999998}]
["18.3.2","PA02 - PA03 - PA04 - Fornecimento  e assentamento de porta em alumínio anodizado bronze, tipo veneziana, de giro, medindo (0,90 x 2,10m) - (3,70x1,80 - 5 folhas) - (0,8x2,10m).","m²",10.23,307.19,{"$f":"E219*D219","v":3142.5536999999999}]
["18.3.3","PAV01 - PAV03 - Fornecimento e assentamento de porta dupla em alumínio anodizado bronze com vidro laminado verde, espessura de 6mm, com duas folhas de giro, inclusive ferragens específicas e dobradiças, conforme detalhe. (Salão Júri e circulação - (1,95x2,10m) e (1,85x2,10m)","m²",7.98,679.48,{"$f":"E220*D220","v":5422.2504000000008}]
["18.3.4","PAV02 - Fornecimento e assentamento de porta em alumínio anodizado bronze com vidro laminado verde, espessura de 6mm, com uma folha de giro, inclusive ferragens específicas e dobradiças, conforme detalhe. (0,90x2,10m)","m²",7.98,679.48,{"$f":"E221*D221","v":5422.2504000000008}]
["18.3.5","EAV01 - Fornecimento e assentamento de esquadria de alumínio anodizado na cor bronze, tipo correr (2 folhas), maximar (4 folhas) e fixa (6 folhas), com vidro laminado 6mm na cor verde, dimensão 6,41x2,60m, inclusive ferragens específicas e dobradiças, conforme detalhe.","m²",16.666,1256.8200000000002,{"$f":"E222*D222","v":20946.162120000005}]
["18.3.6","Kit de automatização de abertura de portas deslizantes, central eletrônica com inversor de frequência, motorredutor(es), kit de ferragem, marca Bona ou similar Fornecimento e assentamento. (EAV01)","un",1,6549.45,{"$f":"E223*D223","v":6549.45}]
["18.3.7","EAV02 - Fornecimento e assentamento de janela de alumínio anodizado na cor bronze, tipo fixa (1 folha) e maximar (1 folha), com vidro laminado 6mm na cor verde, dimensão 1,0x2,35m, inclusive ferragens específicas e dobradiças, conforme detalhe.","m²",9.4,764.12,{"$f":"E224*D224","v":7182.7280000000001}]
["18.3.8","J01 - Janela em alumínio anodizado bronze e vidro verde 6mm. Janela com 2 folhas de correr, 2,00 x 1,60m. Fornecimento e assentamento.","m²",38.400000000000006,700.41000000000008,{"$f":"E225*D225","v":26895.744000000006}]
["18.3.9","J02 - Janela em alumínio anodizado bronze e vidro verde 6mm com 2 folhas de correr 1,65 x1,60m. Fornecimento e assentamento.","m²",2.64,700.41000000000008,{"$f":"E226*D226","v":1849.0824000000002}]
["18.3.10","JA01 - Janela com quatro folhas tipo moldura-vidro, max-ar, em alumínio anodizado bronze e vidro jateado cor verde 6mm. Medindo 2,30 x0,50m. Fornecimento e assentamento.","m²",2.2999999999999998,764.12,{"$f":"E227*D227","v":1757.4759999999999}]
["18.3.11","JA02 - Janela com duas folhas em alumínio tipo moldura-vidro, max-ar, anodizado bronze e vidro jateado cor verde 6mm. Medindo 2,00 x 0,50m. Fornecimento e assentamento.","m²",5,764.12,{"$f":"E228*D228","v":3820.6}]
["18.3.12","JA03 - Janela com duas folhas tipo moldura-vidro, max-ar, em alumínio anodizado bronze e vidro jateado cor verde 6mm. Medindo 1,50 x0,50m. Fornecimento e assentamento.","m²",1.5,764.12,{"$f":"E229*D229","v":1146.18}]
["18.3.13","JA04 - Janela com duas folhas tipo moldura-vidro, max-ar, em alumínio anodizado bronze e vidro jateado cor verde 6mm. Medindo 1,25 x0,50m. Fornecimento e assentamento.","m²",1.25,764.12,{"$f":"E230*D230","v":955.15}]
["18.3.14","JA05 - Janela com duas folhas tipo moldura-vidro, max-ar, em alumínio anodizado bronze e vidro laminado na cor verde 6mm. Medindo 1,20 x0,50m.  Fornecimento e assentamento.","m²",0.6,764.12,{"$f":"E231*D231","v":458.47199999999998}]
["18.3.15","JA06 - Janela com cinco folhas tipo moldura-vidro, max-ar, em alumínio anodizado bronze e vidro laminado na cor verde 6mm, medindo 3,15 x0,50m. Fornecimento e assentamento.","m²",1.575,764.12,{"$f":"E232*D232","v":1203.489}]
["18.3.16","JA07 - Fornecimento e assentamento de janela com 11 folhas, tipo moldura-vidro, max-ar, em alumínio anodizado bronze e vidro cor verde 6mm, medindo 2x(8,09x3,00m) e (0,50x  m). (Salão Júri)","m²",6.82,764.12,{"$f":"E233*D233","v":5211.2984000000006}]
["18.3.17","JA08 - Janela com duas folhas tipo moldura-vidro, max-ar, em alumínio anodizado bronze e vidro jateado cor verde 6mm, medindo 1,15 x0,50m. Fornecimento e assentamento.","m²",0.57499999999999996,764.12,{"$f":"E234*D234","v":439.36899999999997}]
["18.3.18","V1- Fornecimento e assentamento de visor com vidro fixo, esquadria em alumínio anodizado na COR BRONZE, com VIDRO LAMINADO de 6mm na COR VERDE, incluso o fornecimento do contramarco. Dimensão: (1,60 x 1,00) m - Distribuição","m²",1.6,764.12,{"$f":"E235*D235","v":1222.5920000000001}]
["18.3.19","V2 - Fornecimento e assentamento de visor com vidro fixo, esquadria em alumínio anodizado  na COR BRONZE, com VIDRO LAMINADO de 6mm na COR VERDE com  PELÍCULA REFLETIVA, incluso o fornecimento do contramarco. Dimensão: (1,50 x 1,00) m - Sala de Testemunha","m²",1.5,764.12,{"$f":"E236*D236","v":1146.18}]
["18.4","ACESSÓRIOS ","-","-",0,"-"]
["18.4.1","Fechadura de embutir com cilindro, externa, completa, acabamento padrão médio, incluso execução de furo - fornecimento e instalação. ","un",28,160.45999999999998,{"$f":"E238*D238","v":4492.8799999999992}]
["18.4.2","Fechadura de embutir para porta de banheiro, completa, acabamento padrão médio, incluso execução de furo - fornecimento e instalação. ","un",7,139.99,{"$f":"E239*D239","v":979.93000000000006}]
["18.4.3","Fornecimento e instalação de mola aérea fecha porta, prata, para portas de tráfego leve, com largura menor que 95 cm, força de fechamento 2/3 controlada por meio de ajustes da mola e do braço, peso máximo da porta de 60kg.","un",8,185.56,{"$f":"E240*D240","v":1484.48}]
["18.5","CONTRAMARCO","-","-",0,"-"]
["18.5.1","Instalação de contramarco para esquadrias em perfil CM200 ALCOA ou equivalente. ","m",432.9,66.92,{"$f":"E242*D242","v":28969.667999999998}]
["19.0","SERRALHARIA","-","-",0,"-"]
["19.1","FERRO","-","-",0,"-"]
["19.1.1","Fornecimento e instalação de escada do tipo Marinheiro com estrutura da escada em cantoneira 1 1/4\" x 1/4\" e degraus em ferro nervurado 3/4\" com espaçamento de 24cm, gaiola de proteção em ferro liso seção circular de 1/2\", reforço em barra chata 1\" x 1/8\" soldado nos lados internos da argola, escada de ferro soldada na lateral externa e pintura automotiva na cor cinza escuro, conforme detalhe. (Acesso a coberta) ","m",5.7,717.15,{"$f":"E245*D245","v":4087.7550000000001}]
["19.1.2","Fornecimento e instalação suporte para BICICLETAS tipo inglês (\"sheffield\") ou \"U invertido\", modelo para fixação na superfície em tubo de ferro com diâmetro 5cm e espessura 2mm pintado com pintura automotiva na cor cinza escuro - conforme detalhe.","un",5,357.83000000000004,{"$f":"E246*D246","v":1789.15}]
["19.1.3","Fornecimento e assentamento de grade de ferro  com giro 180º, em barra chata de 1\"x1/8\" com moldura de contorno de 1\"x1/4, com abertura de 15x15cm, ferrolho com barra chata de 1\"x1/4\". (Medidas: 1,95x2,10m - 0,95x2,10m - 1,82x2,10m).","m²",9.9120000000000008,453.85,{"$f":"E247*D247","v":4498.561200000001}]
["19.1.4","Fornecimento e instalação de grades das celas (porta e janela), em barra chata de 1 1/4\" x 1/4\" com varões de ferro de 3/4\", moldura de contorno de 1.1/4'' x 1/4'' e cantoneira em \"L\" de 1.1/4'' x 3/16'' pintada com aplicação de zarcão ou antiferrugem, inclusive travas ou ferrolhos especiais, conforme detalhe.","m²",10.83,2176.7600000000002,{"$f":"E248*D248","v":23574.310800000003}]
["19.1.5","Fornecimento e assentamento de grade de proteção em ferro (Janelas), em barra chata 3/4\" x 1/8\", inclusive ferrolho e dobradiças, pintados com zarcão ou antiferrugem, conforme detalhe. (Parafusada por dentro do Fórum).","m²",60.849999999999994,454.44999999999993,{"$f":"E249*D249","v":27653.282499999994}]
["19.1.6","Grelha de ferro fundido simples com requadro, 150 x 1000 mm, assentada com argamassa 1 : 3 cimento: areia - fornecimento e instalação. af_08/2021 (Lixeira)","un",4,190.01000000000002,{"$f":"E250*D250","v":760.04000000000008}]
["19.2","CORRIMÃO","-","-",0,{"$f":"E251*D251","v":{"$error":"#VALUE!"}}]
["19.2.1","Fornecimento e instalação guarda-corpo de aço inox com ∅ 1 1/2'' e altura de 1.10 do piso incluindo balaústre em tubo de aço inox com ∅ 1 1/2\" soldado no centro da roseta de fixação em aço inox ∅ 3\" x 1/8\" e no guarda-corpo, chumbado no piso; corrimão de aço inox com ∅ 1 1/2'' e alturas de 0.92m e 0.70m do piso inclusive com tubo em \"l\" de aço inox com ∅ 3/4\" soldado no corrimão e balaústre; longarinas intermediárias de aço inox com ∅ 1/2'' soldadas no balaústre e alturas de 20cm e 40cm da guia de balizamento, essa com altura mínima de 5cm, instalada ou construída nos limites da largura da escada ou rampa, conforme o detalhe de escadas e rampas. consultar detalhe do código CI01.","m",47.1,708.89,{"$f":"E252*D252","v":33388.718999999997}]
["19.2.2","Fornecimento e instalação corrimão de aço inox com ∅ 1 1/2'' e alturas de 0.92m e 0.70m do piso, sem balaústre, incluindo tubo em \"l\" de aço inox com ∅ 3/4\" soldado no corrimão e no centro da roseta de fixação em aço inox ∅ 2\" x 1/8\", fixado na parede; conforme o detalhe de escadas e rampas. consultar detalhe do código CI02.","m",10.5,427.04999999999995,{"$f":"E253*D253","v":4484.0249999999996}]
["19.2.3","Fornecimento e instalação de corrimão duplo de aço inox com ∅ 1 1/2'' e alturas de 0.92m e 0.70m do piso incluindo tubo em \"l\" de aço inox com ∅ 3/4\" soldado no corrimão e balaústre em tubo de aço inox com ∅ 1 1/2\" soldado no centro da roseta de fixação em aço inox ∅ 3\" x 1/8\", chumbado no piso, conforme o detalhe de escadas e rampas. consultar detalhe do código CI03.","m",3.4,888.42,{"$f":"E254*D254","v":3020.6279999999997}]
["19.3","GRADIL E PORTÃO DE ACESSO","-","-",0,"-"]
["19.3.1","Fornecimento e instalação de portão (carro com rodas) em gradil ELETROGRADI da SITELA ou equivalente, na cor verde, dimensões (5,50x1,98)m,  inclusive frete.","m²",10.89,753.44999999999993,{"$f":"E256*D256","v":8205.0704999999998}]
["19.3.2","Fornecimento e instalação de portão de giro pivotante ELETROGRADI da SITELA ou equivalente, na cor verde, dimensões (3,00 x 1,98)m,  inclusive frete.","m²",5.94,699.54000000000008,{"$f":"E257*D257","v":4155.267600000001}]
["19.3.3","Fornecimento e instalação de gradil Externo ELETROGRADI da SITELA ou equivalente h=1,36m,  na cor verde, inclusive frete.","m²",313.33,345.08,{"$f":"E258*D258","v":108123.91639999999}]
["20.0","AGENCIAMENTO EXTERNO","-","-",0,"-"]
["20.1","PISO INTERTRAVADO / MEIO-FIO","-","-",0,"-"]
["20.1.1","Execução de pátio/ estacionamento em piso intertravado, com bloco retangular, cor natural de 20x10cm, espessura 8cm, incluindo colchão de areia com espessura de 6,0 cm e rejuntamento areia. ","m²",470.41,56.85,{"$f":"E261*D261","v":26742.808500000003}]
["20.1.2","Execução de pátio/ estacionamento em piso intertravado, com bloco retangular, cor colorido de 20x10cm, espessura 8cm, incluindo colchão de areia com espessura de 6,0 cm e rejuntamento areia. ","m²",342.7,61.1,{"$f":"E262*D262","v":20938.97}]
["20.1.3","Assentamento de guia (meio-fio) em trecho reto, confeccionada em concreto pré-fabricado, dimensões 100x15x13x30cm (comprimento x base inferior x base superior x altura), para vias urbanas (uso viário).","m",253.42,50.959999999999994,{"$f":"E263*D263","v":12914.283199999998}]
["20.2","PISO EM PARALELEPIPEDO/ ESTACIONAMENTOS","-","-",0,"-"]
["20.2.1","Pavimento em paralelepípedo sobre colchão de areia rejuntado com argamassa de cimento e areia no traço 1:3 (pedras pequenas 30 a 35 pecas por m²).","m²",1210,75.22,{"$f":"E265*D265","v":91016.2}]
["20.2.2","Construção de linha d'água com paralelepípedos graníticos, assentados sobre mistura de cimento e areia no traço 1:6, com 6 cm de espessura e rejuntados com argamassa de cimento e areia, no traço 1:2, inclusive base de concreto 1:4:8, com 10 cm de espessura.","m",422.66,37.480000000000004,{"$f":"E266*D266","v":15841.296800000002}]
["20.2.3","Execução de passeio (calçada) ou piso de concreto com concreto moldado in loco, feito em obra, acabamento convencional, espessura 10cm, armado.","m²",355.1,116.53,{"$f":"E267*D267","v":41379.803}]
["20.2.4","Execução de juntas de contração para pavimentos de concreto. (só corte)","m",203.57,0.44,{"$f":"E268*D268","v":89.570799999999991}]
["20.2.5","Fornecimento e assentamento de piso tátil de ALERTA em lajota de concreto, com dimensões (0,25x0,25)m, aplicado sobre lastro de concreto 1:4:8 com 5cm de espessura, inclusive execução de lastro.","m²",8.1,165.98,{"$f":"E269*D269","v":1344.4379999999999}]
["20.3","PAVIMENTAÇÃO/ DRENAGEM","-","-",0,"-"]
["20.3.1","Escavação mecânica de material de primeira categoria, proveniente de corte de subleito. ","m³",699,3.81,{"$f":"E271*D271","v":2663.19}]
["20.3.2","Remoção de metralha em caminhão basculante D.M.T. 6 Km, inclusive carga e descarga mecânica.","m³",838.8,15.809999999999999,{"$f":"E272*D272","v":13261.427999999998}]
["20.3.3","Execução de aterro abrangendo espalhamento, homogeneização, umedecimento e compactação mecânica em camadas de 20cm de espessura, inclusive o fornecimento do barro proveniente de jazida a uma distância máxima de 12 Km.","m³",22,74.89,{"$f":"E273*D273","v":1647.58}]
["20.3.4","Regularização do subleito, abrangendo escarificação, homogeneização, umedecimento e compactação com espessura de 15cm, teor de compactação a 100 por cento AASHO normal (DNER-ME 47-64)","m²",1680,1.82,{"$f":"E274*D274","v":3057.6}]
["20.3.5","Execução de base/sub-base com brita graduada (corrida) abrangendo espalhamento e compactação da mistura em camadas sucessivas com 0,15m de espessura, inclusive fornecimento do material (posto obra).","m³",252,105.89,{"$f":"E275*D275","v":26684.28}]
["20.3.6","Assentamento de guia (meio-fio) em trecho reto, confeccionada em concreto pré-fabricado, dimensões 100x15x13x20 cm (comprimento x base inferior x base superior x altura), para urbanização interna de empreendimentos.","m",228,48.66,{"$f":"E276*D276","v":11094.48}]
["20.3.7","Grade de concreto de 0,30 x 0,95m, inclusive assentamento.","un",8,79.08,{"$f":"E277*D277","v":632.64}]
["20.3.8","Construção de caixa coletora tipo \"com grade\" em alvenaria de 1 vez - Tijolos maciços prensados - nas dimensões internas de 0,25x0,85x1,00m, inclusive escavação, reaterro compactado e remoção do material excedente (sem a grade)","un",8,1089.82,{"$f":"E278*D278","v":8718.56}]
["20.3.9","Construção de poço de visita tipo \"com gaveta\" em alvenaria de 1 vez de Tijolos maciços, prensados, nas dimensões internas 1,00x1,00x1,50m, inclusive escavação, reaterro compactado e remoção do material excedente (com sobretampa de concreto).","un",4,4875.37,{"$f":"E279*D279","v":19501.48}]
["20.3.10","Escavação mecânica de vala em material de primeira categoria até 3,0m de profundidade, sem escoramento.","m³",107,7.7700000000000005,{"$f":"E280*D280","v":831.3900000000001}]
["20.3.11","Remoção de metralha em caminhão basculante D.M.T. 6 Km, inclusive carga e descarga mecânica.","m³",128.4,15.809999999999999,{"$f":"E281*D281","v":2030.0039999999999}]
["20.3.12","Fornecimento e espalhamento de pó de pedra inclusive carga, descarga e transporte.","m³",114,82.25,{"$f":"E282*D282","v":9376.5}]
["20.3.13","Compactação mecânica de aterro a 100 por cento do proctor normal, medido na seção, inclusive espalhamento, umedecimento e homogeneização.","m³",114,4.01,{"$f":"E283*D283","v":457.14}]
["20.3.14","Escoramento descontínuo de valas.","m²",368,70.099999999999994,{"$f":"E284*D284","v":25796.799999999999}]
["20.3.15","Esgotamento de água com moto-bomba a gasolina de 3,4 HP inclusive 10 metros de mangote de 2'' com combustível.","h",10,21.53,{"$f":"E285*D285","v":215.3}]
["20.3.16","Fornecimento e assentamento de tubo corrugado em PEAD, modelo N12-WT para drenagem, com diâmetro de 375mm, Tigre ou similar, incluindo pasta lubrificante e transporte dos tubos, com carrego e descarrego na obra. ","m",70,501.53,{"$f":"E286*D286","v":35107.1}]
["20.3.17","Fornecimento e assentamento de tubo corrugado em PEAD, modelo N12-WT para drenagem, com diâmetro de 450mm, Tigre ou similar, incluindo pasta lubrificante e transporte dos tubos, com carrego e descarrego na obra.","m",40,598.08000000000004,{"$f":"E287*D287","v":23923.200000000001}]
["21.0","PAISAGISMO","-","-",0,"-"]
["21.1","Plantio de grama esmeralda em placas, inclusive preparação do terreno para plantio (terra vegetal e fertilizante).","m²",2503.5,21.38,{"$f":"E289*D289","v":53524.829999999994}]
["21.2","Fornecimento e plantio de mudas de pingo de ouro (Duranta repens áurea).","un",23,10.87,{"$f":"E290*D290","v":250.01}]
["21.3","Trapoeraba Roxa - Viuvinha -Tradescantia Pálida Purpurea.","un",21,12.74,{"$f":"E291*D291","v":267.54000000000002}]
["21.4","Fornecimento e plantio de Hoenix Robelenii com 0,80cm de tronco - Palmeira Fênix, incluindo preparação de cova com 40 x 40 x 40 cm, com barro jardim e estrume bovino.","un",2,136.35,{"$f":"E292*D292","v":272.7}]
["21.5","Fornecimento e plantio de mudas de Pata de Vaca, com cerca de 2,0m de altura, incluindo a preparação de cova de 40,0 x 40,0 x 40,0cm com barro de jardim e estrume bovino curtido.","un",22,124.24,{"$f":"E293*D293","v":2733.2799999999997}]
["21.6","Corte raso e recorte de árvore com diâmetro de tronco maior ou igual a 0,20m e menor que 0,40m. (Coqueiros)","un",11,74.22,{"$f":"E294*D294","v":816.42}]
["21.7","Fornecimento e plantio de coqueiro anão, incluindo preparação de cova com 40 x 40 x 40 cm, com barro jardim e estrume bovino.","un",4,62.910000000000004,{"$f":"E295*D295","v":251.64000000000001}]
["22.0","INSTALAÇÕES ELÉTRICAS","-","-",0,"-"]
["22.1","INFRAESTRUTURA/ACABAMENTO","-","-",0,"-"]
["22.1.1","Tomada de embutir  no piso (2p+t) para caixa de 4 x 2 pol., com placa em latão e módulo na linha Pialplus ou equivalente, sendo um módulo de 10A, demais acessórios, inclusive instalação.","cj",3,18.46,{"$f":"E298*D298","v":55.38}]
["22.1.2","Interruptor de embutir de uma seção para caixa 4x2 pol., composto por suporte, placa e módulo na linha Pialplus ou equivalente, na cor bege e demais acessórios, inclusive instalação.","cj",30,23.810000000000002,{"$f":"E299*D299","v":714.30000000000007}]
["22.1.3","Interruptor de embutir  three-way (paralelo) de uma tecla para caixa 4x2 pol., composto por suporte, placa e módulo na linha Pialplus ou equivalente, na cor bege e demais acessórios, inclusive instalação.","cj",2,31.48,{"$f":"E300*D300","v":62.96}]
["22.1.4","Interruptor de embutir de três seções para caixa 4x2 pol., composto por suporte, placa e módulos na linha Pialplus ou equivalente, na cor bege e demais acessórios, inclusive instalação.","cj",2,42.15,{"$f":"E301*D301","v":84.3}]
["22.1.5","Interruptor de embutir  three-way (paralelo) de duas teclas para caixa 4x2 pol., composto por suporte, placa e módulo na linha Pialplus ou equivalente, na cor bege e demais acessórios, inclusive instalação.","cj",4,31.48,{"$f":"E302*D302","v":125.92}]
["22.1.6","Interruptor de embutir de duas seções para caixa 4x2 pol., composto por suporte, placa e módulo na linha Pialplus ou equivalente, na cor bege e demais acessórios, inclusive instalação.","cj",2,36.97,{"$f":"E303*D303","v":73.94}]
["22.1.7","Tomada de embutir (2p+t) para caixa de 4 x 2 pol., com placa e módulo na linha Pialplus ou equivalente, sendo um módulo de 20A, demais acessórios, inclusive instalação.","cj",10,19.479999999999997,{"$f":"E304*D304","v":194.79999999999995}]
["22.1.8","Caixa retangular 4x2\", em PVC, instalada em alvenaria. Fornecimento e instalação","und",81,10.379999999999999,{"$f":"E305*D305","v":840.78}]
["22.1.9","Fornecimento e instalação de caixa 4x4 pol para instalação em parede.","und",60,14.120000000000001,{"$f":"E306*D306","v":847.2}]
["22.1.10","Fornecimento tampa cega, 4x4 pol., cor bege, na linha Pial Plus ou equivalente, inclusive instalação.","und",29,6.07,{"$f":"E307*D307","v":176.03}]
["22.1.11","Tomada de embutir (2p+t) para caixa de 4 x 2 pol., com placa e módulo na linha Pialplus ou equivalente, sendo um módulo de 10A, demais acessórios, inclusive instalação.","cj",68,19.479999999999997,{"$f":"E308*D308","v":1324.6399999999999}]
["22.1.12","Fornecimento e instalação de caixa 4x4 pol para instalação em drywall.","und",43,13.46,{"$f":"E309*D309","v":578.78000000000009}]
["22.1.13","Caixa retangular 4x2\", em PVC, para instalação em drywall. Fornecimento e instalação","und",72,9.8800000000000008,{"$f":"E310*D310","v":711.36}]
["22.1.14","Caixa (4x2)\" para piso em alumínio, inclusive assentamento.","und",7,22.939999999999998,{"$f":"E311*D311","v":160.57999999999998}]
["-","LUMINÁRIAS","-","-",0,"-"]
["22.1.15","Luminária de embutir p/ 02 (duas) lâmpadas LED de 18W, sem alojamento; corpo em chapa de aço galvanizado c/ pintura eletrostática em pó de poliéster epóxi; refletor facetado em alumínio anodizado de alta pureza e refletância; aletas parabólicas em alumínio; soquetes em policarbonato; inclusive lâmpadas LED tubular Philips, Osram, ou equivalente, 2x18W, 220V, demais acessórios e instalação. Ref. Lumicenter, Luminárias Projeto, Itaim, Stillux, Indelpa ou equivalente. 0,5m de cabo PP2,5mm², 01 conector macho, 01 conector fêmea","cj",74,187.73,{"$f":"E313*D313","v":13892.019999999999}]
["22.1.16","Luminária circular de embutir p/ 02 lâmpadas LED bulbo de 11W, c/ aro de acabamento em chapa de aço pintada, refletor em alumínio repuxado e anodizado de alta pureza e refletância; soquetes em policarbonato s/ vidro difusor temperado jateado central (diâmetro externo aprox. do vidro 21,0 cm), inclusive lâmpadas, , p/ lâmpada led 2x101W, 220V, demais acessórios e instalação . Ref. Lumicenter, Luminárias Projeto, Itaim, Stillux, Indelpa ou equivalente.","cj",60,140.09,{"$f":"E314*D314","v":8405.4}]
["22.1.17","Luminária de sobrepor p/ 02 (duas) lâmpadas LED de 18W, s/ alojamento; corpo em chapa de aço galvanizado c/ pintura eletrostática em pó de poliéster epóxi; refletor facetado em alumínio anodizado de alta pureza e refletância; aleta plana em chapa de aço pintada (branca); inclusive lâmpadas, para lâmpada LED tubular, 2x18W, 220V, demais acessórios e instalação. Ref. Lumicenter, Luminárias Projeto, Itaim, Stillux, Indelpa ou equivalente.  0,5m de cabo PP2,5mm², 01 conector macho, 01 conector fêmea","cj",60,187.06,{"$f":"E315*D315","v":11223.6}]
["22.1.18","Luminária LED  de embutir dicróica 5W, demais acessórios e instalação. Ref. Lumicenter, Luminárias Projeto, Itaim, Stillux, Indelpa ou equivalente.","cj",9,211.54000000000002,{"$f":"E316*D316","v":1903.8600000000001}]
["22.1.19","Fornecimento de POSTE RETO SIMPLES, telecônico, confeccionado em tubo de aço patente galvanizado a fogo medindo 8metros, flangeado com base e chumbador, produzido em três estágios, sendo: 3\", 2 1/2\" e 2\". Ref. MP-600, fab: EDESA, ou equivalente.","cj",13,3344.89,{"$f":"E317*D317","v":43483.57}]
["22.1.20","Fornecimento de luminária externa, retangular para poste tipo pétala com três módulos de LED de 120W/100W (equivalente a 250W de vapor metálico) com emissão de luz na cor branco neutro, em alumínio com acabamento em pintura eletrostática, inclusive instalação em postes de 8m. Ref. ITAIM MODELO TRANSFORMER 3 ou equivalente .","cj",38,1403.23,{"$f":"E318*D318","v":53322.74}]
["22.1.21","Fornecimento e instalação de luminária circular resistente a água, para embutir em jardim ou piso, toda em liga de alumínio injetado. Proteção em vidro temperado e grade. Acabamento em pintura eletrostática na cor preta grau de proteção IP65, inclusive lâmpada par 30 LED 12W.Itaim, Prolumi ou equivalente","und",2,399.03000000000003,{"$f":"E319*D319","v":798.06000000000006}]
["22.1.22","Fornecimento de POSTE RETO DUPLO, telecônico, confeccionado em tubo de aço patente galvanizado a fogo medindo 8metros, flangeado com base e chumbador, produzido em três estágios, sendo: 3\", 2 1/2\" e 2\". Fab: EDESA, ou equivalente.","m",12,3559.97,{"$f":"E320*D320","v":42719.64}]
["22.1.23","Fornecimento e Instalação de Projetor LED 50W, modelo Philips BVP162 ou equivalente.","cj",4,90.1,{"$f":"E321*D321","v":360.4}]
["22.1.24","Relé fotoelétrico para comando de iluminação externa 220V/1000W, de conector, com base. Fornecimento e instalação.","und",29,47.300000000000004,{"$f":"E322*D322","v":1371.7}]
["22.1.25","Luminária arandela tipo tartaruga em alumínio na cor branca, com grade, para uma lâmpada base E27, inclusive lâmpada led bulbo de 11W, E27, 220V, 5000K. Fornecimento e instalação.  ","cj",4,81.040000000000006,{"$f":"E323*D323","v":324.16000000000003}]
["22.1.26","Luminária circular de sobrepor p/ 02 lâmpadas LED bulbo de 11W, c/ aro de acabamento em chapa de aço pintada, refletor em alumínio repuxado e anodizado de alta pureza e refletância; soquetes em policarbonato s/ vidro difusor temperado jateado central (diâmetro externo aprox. do vidro 21,0 cm), inclusive lâmpadas, , p/ lâmpada led 2x101W, 220V, demais acessórios e instalação . Ref. Lumicenter, Luminárias Projeto, Itaim, Stillux, Indelpa ou equivalente.","cj",7,76.580000000000013,{"$f":"E324*D324","v":536.06000000000006}]
["22.2","ELETRODUTOS/ELETROCALHAS","-","-",0,"-"]
["22.2.1","Eletrocalha perfurada, galvanizada, em chapa 18, dim.: 50x50mm, inclusive acessórios de derivação e fixação. Fornecimento e instalação.                        ","m",212.92,55.07,{"$f":"E326*D326","v":11725.5044}]
["22.2.2","Eletrocalha perfurada, galvanizada, em chapa 18, dim.: 100x50mm, inclusive acessórios de derivação e fixação. Fornecimento e instalação.                        ","m",49.37,39.94,{"$f":"E327*D327","v":1971.8377999999998}]
["22.2.3","Fornecimento e assentamento de eletroduto de PVC rígido de 3/4\" com luva de rosca interna, curvas, assentado em valas/alvenaria, inclusive escavação, reaterro e demais acessórios de fixação.","m",27.6,29.810000000000002,{"$f":"E328*D328","v":822.75600000000009}]
["22.2.4","Fornecimento e assentamento de eletroduto de PVC rígido de 2\" com luva de rosca interna, curvas e demais acessórios de fixação, inclusive cabo guia..","m",22.4,33.11,{"$f":"E329*D329","v":741.66399999999999}]
["22.2.5","Fornecimento e assentamento de eletroduto de PVC rígido de 2\" com luva de rosca interna, assentado em valas/alvenaria, inclusive escavação, reaterro e demais acessórios de fixação.","m",215.5,24.75,{"$f":"E330*D330","v":5333.625}]
["22.2.6","Eletroduto de PVC rígido rosqueável de 3/4\", com luva de rosca interna e acessórios de fixação (abraçadeira). Fornecimento e instalação.","m",9.8000000000000007,12.34,{"$f":"E331*D331","v":120.932}]
["22.3","QUADROS/PROTEÇÃO","-","-",0,"-"]
["22.3.1","Quadro de distribuição de energia de sobrepor, em chapa metálica, para 24 disjuntores termomagnéticos monopolares, padrão DIN, com barramento trifásico (100A), guia para disjuntor geral, barras de neutro e terra e demais acessórios. Fornecimento e instalação.","und",4,568.41,{"$f":"E333*D333","v":2273.64}]
["22.3.2","Disjuntor monopolar termomagnético de 6 até 32A Eletromar padrão IEC ou equivalente, inclusive instalação em quadro de distribuição, conforme projeto.","und",66,26.47,{"$f":"E334*D334","v":1747.02}]
["22.3.3","Disjuntor tripolar termomagnético até 125A Eletromar padrão IEC ou equivalente, inclusive instalação em quadro de distribuição, conforme o projeto.","und",8,422.26,{"$f":"E335*D335","v":3378.08}]
["22.3.4","Disjuntor monopolar termomagnético de 16A Eletromar padrão IEC ou equivalente, inclusive instalação em quadro de distribuição, conforme projeto.","und",3,10.059999999999999,{"$f":"E336*D336","v":30.179999999999996}]
["22.3.5","Interruptor diferencial Residual (DR) bipolar de 25A, In 30mA, Siemens ou equivalente, inclusive  terminais a compressâo em cobre estanhado. Fornecimento e instalação.","und",3,148.70000000000002,{"$f":"E337*D337","v":446.1}]
["22.3.6","Quadro de distribuição de energia de sobrepor, em chapa metálica, para 32 disjuntores termomagnéticos tripolares, padrão DIN, com barramento trifásico (100A), guia para disjuntor geral, barras de neutro e terra e demais acessórios. Fornecimento e instalação.","und",1,963.93000000000006,{"$f":"E338*D338","v":963.93000000000006}]
["22.3.7","Dispositivo DPS Classe II, 1 polo, 275V, 45kA, incluindo terminais a compressâo em cobre estanhado. Fornecimento e instalação.","und",9,117.22,{"$f":"E339*D339","v":1054.98}]
["22.3.8","Quadro de distribuição metálico de sobrepor, em chapa 16 BWG, para 24 circuitos monopolares padrão DIN, com barra de neutro e terra 150A, com porta e trinco, Cemar ou equivalente,  inclusive instalação conforme projeto.","und",1,1495,{"$f":"E340*D340","v":1495}]
["22.3.9","Disjuntor monopolar termomagnético de 4A Eletromar padrão IEC ou equivalente, inclusive instalação em quadro de distribuição, conforme projeto.","und",1,75.36,{"$f":"E341*D341","v":75.36}]
["22.3.10","Quadro de distribuição de energia de sobrepor, em chapa metálica, para 8 disjuntores termomagnéticos monopolares, padrão DIN, com barramento trifásico (100A), guia para disjuntor geral, barras de neutro e terra e demais acessórios. Fornecimento e instalação.","und",1,504.96,{"$f":"E342*D342","v":504.96}]
["22.4","ALIMENTADORES","-","-",0,"-"]
["22.4.1","Cabo de cobre EPR ou equivalente, isolação 0,6/1kV., de 16mm².,  inclusive instalação em eletroduto/eletrocalha/leito.      ","m",14.6,22.88,{"$f":"E344*D344","v":334.048}]
["22.4.2","Cabo de cobre AFUMEX, ATOX, AFITOX ou equivalente (Não-Halogenado), isolação 0,6/1kV., de 16mm²., inclusive instalação em eletroduto/eletrocalha/leito.","m",74.7,16.96,{"$f":"E345*D345","v":1266.912}]
["22.4.3","Cabo de cobre AFUMEX, ATOX, AFITOX ou equivalente (Não-Halogenado), isolação 0,6/1kV., de 25mm². , inclusive instalação em eletroduto/eletrocalha/leito.","m",497,28.05,{"$f":"E346*D346","v":13940.85}]
["22.4.4","Cabo de cobre AFUMEX, ATOX, AFITOX ou equivalente (Não-Halogenado), isolação 0,6/1kV., de 6,0mm². , inclusive instalação em eletroduto/eletrocalha/leito.","m",100.16,10.36,{"$f":"E347*D347","v":1037.6576}]
["22.4.5","Cabo de cobre nu, têmpera meio-duro, encordoamento classe 2, seção nominal de 50,0mm². Fornecimento e instalação.","m",33,57.56,{"$f":"E348*D348","v":1899.48}]
["22.5","DIVERSOS ELÉTRICA","-","-",0,"-"]
["22.5.1","Chave de boia automática superior/inferior 10A/250V. Fornecimento e instalação.","und",2,72.650000000000006,{"$f":"E350*D350","v":145.30000000000001}]
["22.5.2","Condulete em liga de aalumínio fundido, com tampa, tipo X, para eletroduto roscável de 3/4\", aparente, inclusive acessórios de fixação. Fornecimento e instalação.","und",1,41.21,{"$f":"E351*D351","v":41.21}]
["22.5.3","Haste de aterramento (tipo copperweld) de  5/8\" x 3,0 m. Fornecimento e instalação","und",30,88.79,{"$f":"E352*D352","v":2663.7000000000003}]
["22.5.4","Fornecimento e instalação de chave de partida direta para motor monofásico de 2cv.","m",1,369.74,{"$f":"E353*D353","v":369.74}]
["22.5.5","Fornecimento de parafuso cabeça sextavada em aço inox TEL 5329 Termotécnica ou equivalente.","und",27,1.02,{"$f":"E354*D354","v":27.54}]
["22.5.6","Solda exotérmica para cabo de 50mm², incluindo Cartucho nº 115, molde, ignex e demais acessórios inclusive execução.","m",27,256.42,{"$f":"E355*D355","v":6923.34}]
["22.5.7","Condulete em liga de alumínio fundido tipo L roscável, para eletrodudo de 1\" com tampa, inclusive acessórios de fixação, fornecimento e instalação.","und",17,39.11,{"$f":"E356*D356","v":664.87}]
["22.5.8","Condulete em liga de alumínio com tampa, tipo T, para eletroduto roscável de 1\", aparente, inclusive acessorios de fixação. Fornecimento e instalação.","und",23,43.379999999999995,{"$f":"E357*D357","v":997.7399999999999}]
["22.5.9","Condulete em PVC com tampa, tipo C, para eletroduto roscável de 3/4\", aparente, inclusive acessorios de fixação. Fornecimento e instalação.","und",1,27.73,{"$f":"E358*D358","v":27.73}]
["22.5.10","Condulete em PVC com tampa, tipo L, para eletroduto roscável de 3/4\",  inclusive acessórios de fixação. Fornecimento e instalação.","und",6,33.5,{"$f":"E359*D359","v":201}]
["22.5.11","Condulete em PVC, com tampa, TIPO \"t\", para eleroduto roscável de 3/4\". Inclusive acessórios de fixação Fornecimento e instalação","und",6,22.43,{"$f":"E360*D360","v":134.57999999999998}]
["22.6"," REDE ESTABILIZADA","-","-",0,"-"]
["22.6.1","Tomada de embutir para computador em caixa 4x4 pol., com quatro tomadas 2p+t, sendo três módulos de 10A, mais um módulo de 20A. com placa e módulos na linha Pialplus ou equivalente.","cj",40,103.72999999999999,{"$f":"E362*D362","v":4149.2}]
["22.6.2","Tomada de embutir no piso (2p+t) para caixa de 4 x 2 pol., com placa em latão, sendo um módulo de 10A  na linha Pialplus ou equivalente, demais acessórios, inclusive instalação.","cj",2,25.85,{"$f":"E363*D363","v":51.7}]
["22.6.3","Tomada de piso para computador em caixa 4x4 pol., com quatro tomadas 2p+t, sendo três módulos de 10A, mais um módulo de 20A. com placa em latão e módulos na linha Pialplus ou equivalente","cj",3,112.75,{"$f":"E364*D364","v":338.25}]
["22.6.4","Caixa (4x4)\" para piso em alumínio, inclusive assentamento.","und",6,27.450000000000003,{"$f":"E365*D365","v":164.70000000000002}]
["22.7","CABEAMENTO ESTRUTURADO ","-","-",0,"-"]
["22.7.1","Fornecimento e instalação de perfilado perfurado, dim.: 38x38mm, inclusive acessórios de derivação e fixação.","und",132.19999999999999,12.360000000000001,{"$f":"E367*D367","v":1633.992}]
["22.7.2","Curva de PVC rígido, para eletroduto roscável de 2\", aparente, inclusive acessórios de fixação. Fornecimento e instalação.","und",1,29.54,{"$f":"E368*D368","v":29.54}]
["22.7.3","Tomada para lógica e telefonia de embutir cat.5e para caixa de 4 x 2 pol., composta por placa 4x2 pol., um módulo RJ-45 para voz e dados, um módulo cego, com placa e módulos na linha Furukawa ou equivalente, cor bege, demais acessórios, inclusive conexão/crimpagem tipo impacto (push-down).","cj",15,50.69,{"$f":"E369*D369","v":760.34999999999991}]
["22.7.4","Tomada para lógica e telefonia de embutir para caixa 4x4 pol., composta por placa 4x4 pol., dois módulos RJ-45 para voz e dados, quatro módulos cegos, com placa e módulos na linha Furukawa ou equivalente, cor bege, demais acessórios, inclusive conexão/crimpagem tipo impacto (push-down).","cj",32,96.69,{"$f":"E370*D370","v":3094.08}]
["22.7.5","Cabo Telefônico CCI-50 4 pares - Fornecimento e instalação (CTP APL,  inclusive instalação em eletroduto/eletrocalha)        ","m",7.8,5.82,{"$f":"E371*D371","v":45.396000000000001}]
["22.7.6","Quadro para telefone com bloco BLI de 10 pares, de embutir, nas dimensões de (0,40x0,40x0,15)m, inclusive instalação.","und",1,204.03,{"$f":"E372*D372","v":204.03}]
["22.7.7","Poste de concreto secção duplo T, 100/9, com engastamento direto no solo de 1,40m, inclusive colocação.","und",1,788.55000000000007,{"$f":"E373*D373","v":788.55000000000007}]
["22.7.8","Cabo paralelo em fio de cobre, isolamento em pvc - 70 c,de 2x1,5 mm² para instalação do sistema de som, inclusive instalação em eletroduto/eletrocalha.","m",60.3,11.64,{"$f":"E374*D374","v":701.89200000000005}]
["22.7.9","Cabo de cobre rígido de  6mm², antichama - fornecimento e instalação","m",9.8000000000000007,8.82,{"$f":"E375*D375","v":86.436000000000007}]
["22.7.10","Caixa (4x4)\" para piso em alumínio, alta, com tampa cega em latão,  para instalação do sistema de som, inclusive assentamento.","und",1,258.27999999999997,{"$f":"E376*D376","v":258.27999999999997}]
["22.7.11","Fornecimento e instalação de sonofletor de embutir de 6 pol., do tipo coaxial, com potência de 30w (rms), com transformador de impedância, tipo selenium ou equivalente, inclusive assentamento em forro e demais acessórios.","m",6,253.51999999999998,{"$f":"E377*D377","v":1521.12}]
["22.7.12","Condulete de alumínio com tampa, tipo X, para eletroduto roscável de 3/4\", aparente, inclusive acessórios de fixação. Fornecimento e instalação.","und",6,39.28,{"$f":"E378*D378","v":235.68}]
["22.7.13","Tomada de piso para lógica e telefonia para caixa 4x4 pol., composta por placa em latão 4x4 pol., dois módulos RJ-45 para voz e dados, quatro módulos cegos, com placa e módulos na linha Furukawa ou equivalente, demais acessórios, inclusive conexão/crimpagem tipo impacto (push-down).","m",2,53.309999999999995,{"$f":"E379*D379","v":106.61999999999999}]
["22.7.14","Tomada de piso para lógica e telefonia de embutir cat.5e para caixa de 4 x 2 pol., composta por placa em latão 4x2 pol., um módulo RJ-45 para voz e dados, um módulo cego, com placa e módulos na linha Furukawa ou equivalente, demais acessórios, inclusive conexão/crimpagem tipo impacto (push-down).","m",2,49.93,{"$f":"E380*D380","v":99.86}]
["22.7.15","Tomada para alarme em alvenaria CCI-50 para caixa de 4 x 2 pol., composta por placa 4x2 pol., um módulo RJ-11 , com placa e módulos na linha Furukawa ou equivalente, cor bege, demais acessórios, inclusive conexão/crimpagem tipo impacto (push-down).","m",20,28.919999999999998,{"$f":"E381*D381","v":578.4}]
["22.8","PONTOS","-","-",0,"-"]
["22.8.1","Ponto duplo para voz/dados no piso, composto por tubulação em eletroduto de PVC rígido 1\", com luva de rosca interna, curva e acessórios, cabo Utp 4 pares (2x), cat. 5e, Furukawa ou equivalente, para duas tomadas RJ45 (voz/dados) incluindo a reserva técnica de cabo de 11m (2x5,5m).","pt",1,193.75,{"$f":"E383*D383","v":193.75}]
["22.8.2","Ponto simples para voz/dados no teto, composto por tubulação em eletroduto de PVC rígido 1\", com luva de rosca interna, curva e acessórios, cabo Utp 4 pares (1x), cat. 5e, Furukawa ou equivalente, para uma tomada RJ45 (voz ou dados), incluindo a reserva técnica de 5,5m de cabo.","pt",7,71.89,{"$f":"E384*D384","v":503.23}]
["22.8.3","Ponto simples para voz/dados no piso, composto por tubulação em eletroduto de PVC rígido 1\", com luva de rosca interna, curva e acessórios, cabo Utp 4 pares (1x), cat. 5e, Furukawa ou equivalente, para uma tomada RJ45 (voz ou dados), incluindo a reserva técnica de 5,5m de cabo.","pt",2,141.03,{"$f":"E385*D385","v":282.06}]
["22.8.4","Ponto simples para alarme em alvenaria, composto por tubulação em eletroduto de PVC rígido 3/4\", com luva de rosca interna, curva e acessórios, cabo CCI-50 (1x), Furukawa ou equivalente, para uma tomada RJ11.","pt",14,199.53,{"$f":"E386*D386","v":2793.42}]
["22.8.5","Ponto simples para alarme em drywall, composto por tubulação em eletroduto de PVC rígido 3/4\", com luva de rosca interna, curva e acessórios, eletroduto PVC flexível corrugado 1\"com luva de pressão interna cabo, cabo CCI-50 (1x), Furukawa ou equivalente, para uma tomada RJ11.","m",6,234.89999999999998,{"$f":"E387*D387","v":1409.3999999999999}]
["22.8.6","Ponto em drywall para tomada estabilizada (computador), composto por fiação em cabo de 4,0mm² AFUMEX, ATOX, AFITOX ou equivalente (Não-Halogenado), isolação 750V. e eletroduto de PVC rígido de 3/4\", com luva de rosca interna, curvas e demais acessórios, eletroduto PVC flexível corrugado 3/4\"com luva de pressão interna.","und",23,327.27,{"$f":"E388*D388","v":7527.2099999999991}]
["22.8.7","Ponto  no piso para tomada estabilizada (computador), composto por fiação em cabo de 4,0mm² AFUMEX, ATOX, AFITOX ou equivalente (Não-Halogenado), isolação 750V. e eletroduto de PVC rígido de 3/4\", com luva de rosca interna, curvas e demais acessórios.","und",5,314.14999999999998,{"$f":"E389*D389","v":1570.75}]
["22.8.8","Ponto para tomada estabilizada (computador), composto por fiação em cabo de 4,0mm² AFUMEX, ATOX, AFITOX ou equivalente (Não-Halogenado), isolação 750V. e eletroduto de PVC rígido de 3/4\", com luva de rosca interna, curvas e demais acessórios.","pt",17,327.32000000000005,{"$f":"E390*D390","v":5564.4400000000005}]
["22.8.9","Ponto simples para voz/dados em alvenaria, composto por tubulação em eletroduto de PVC rígido 1\", com luva de rosca interna, curva e acessórios, cabo Utp 4 pares (1x), cat. 5e, Furukawa ou equivalente, para uma tomada RJ45 (voz ou dados), incluindo a reserva técnica de 5,5m de cabo.","pt",8,90.98,{"$f":"E391*D391","v":727.84}]
["22.8.10","Ponto duplo para tomada de voz/dados em alvenaria, para tomada de sobrepor composto por tubulação em eletroduto de PVC rígido de 1\", com acessórios, tubulação em eletroduto de PVC flexível corrugado de 1\", com acessórios e cabo Utp 4 pares (2x), cat. 5e, Furukawa ou equivalente, para duas tomadas RJ45, incluindo a reserva técnica de 2x5,5m de cabo (5,0m+0,5m). Fornecimento e instalação.","pt",16,137.99,{"$f":"E392*D392","v":2207.84}]
["22.8.11","Ponto duplo para voz/dados em drywall, composto por tubulação em eletroduto de PVC rígido 1\", com luva de rosca interna, curva e acessórios, eletroduto PVC flexível corrugado 1\"com luva de pressão interna cabo Utp 4 pares (2x), cat. 5e, Furukawa ou equivalente, para duas tomadas RJ45 (voz/dados) incluindo a reserva técnica de cabo de 11m (2x5,5m).","pt",104,131.16,{"$f":"E393*D393","v":13640.64}]
["22.8.12","Ponto de luz em parede, composto por fiação em cabo de cobre flexível de 2,5mm², com isolação em composto termoplástico poliolefínico não halogenado, não propagante à chama, com baixa emissão de fumaça e gases tóxicos e classe térmica 70° C (Afumex, Atox, Afitox ou equivalente (Não-Halogenado), isolação 750V, eletroduto de PVC rígido, eletroduto de PVC flexível corrugado de 3/4\", caixa octogonal e demais acessórios. Fornecimento e instalação.","pt",2,156.28,{"$f":"E394*D394","v":312.56}]
["22.8.13","Ponto de luz em teto, composto por fiação em cabo flexível de 2,5mm² AFUMEX, ATOX, AFITOX ou equivalente (Não-Halogenado), isolação 750V., eletroduto de PVC rígido de 3/4\" com luva de rosca interna, curvas, caixa octogonal e demais acessórios, desde o ponto de luz até o quadro de distribuição.","pt",154,88.72,{"$f":"E395*D395","v":13662.88}]
["22.8.14","Ponto de luz em parede de drywall, composto por fiação em cabo flexível de 2,5mm² AFUMEX, ATOX, AFITOX ou equivalente (Não-Halogenado), isolação 750V., eletroduto de PVC rígido de 3/4\" com luva de rosca interna, curvas, caixa octogonal e demais acessórios, desde o ponto de luz até o quadro de distribuição.","pt",2,124.41,{"$f":"E396*D396","v":248.82}]
["22.8.15","Ponto de luz para iluminação externa em poste, composto por fiação em cabo flexível de 2,5mm² AFUMEX, ATOX, AFITOX ou equivalente (Não-Halogenado), isolação 1kV., eletroduto de PVC rígido de 3/4\"  e 1\" com luva de rosca interna, curvas e demais acessórios, desde o ponto de luz até o quadro de distribuição.","pt",25,499.8,{"$f":"E397*D397","v":12495}]
["22.8.16","Infraestrutura para Ponto de luz para iluminação externa em poste, composto por  eletroduto de PVC rígido de 3/4\"  e 1\" com luva de rosca interna, curvas e demais acessórios, desde o ponto de luz até o quadro de distribuição.","pt",25,532.22,{"$f":"E398*D398","v":13305.5}]
["22.8.17","Ponto de luz para iluminação externa em piso, composto por fiação em cabo flexível de 2,5mm² AFUMEX, ATOX, AFITOX ou equivalente (Não-Halogenado), isolação 1kV., eletroduto de PVC rígido de 3/4\"  e 1\" com luva de rosca interna, curvas e demais acessórios, desde o ponto de luz até o quadro de distribuição.","pt",6,316.15999999999997,{"$f":"E399*D399","v":1896.9599999999998}]
["22.8.18","Infrestrutura de Ponto de luz para iluminação externa no piso,composto por eletroduto de PVC rígido de 3/4\"  e 1\" com luva de rosca interna, curvas e demais acessórios, desde o ponto de luz até o quadro de distribuição.","pt",6,438.05999999999995,{"$f":"E400*D400","v":2628.3599999999997}]
["22.8.19","Ponto para interruptor simples de uma seção em alvenaria, composto por fiação em cabo de cobre flexível de 2,5mm², com isolação em composto termoplástico poliolefínico não halogenado, não propagante à chama, com baixa emissão de fumaça e gases tóxicos e classe térmica 70° C (Afumex, Atox, Afitox ou equivalente (Não-Halogenado), isolação 750V, eletroduto de PVC rígido de 3/4\", eletroduto de PVC flexível corrugado de 3/4\" e acessórios.  Fornecimento e instalação. ","pt",2,99.88,{"$f":"E401*D401","v":199.76}]
["22.8.20","Ponto para interruptor paralelo de uma seção em alvenaria, composto por fiação em cabo de cobre flexível de 2,5mm², com isolação em composto termoplástico poliolefínico não halogenado, não propagante à chama, com baixa emissão de fumaça e gases tóxicos e classe térmica 70° C (Afumex, Atox, Afitox ou equivalente (Não-Halogenado), isolação 750V, eletroduto de PVC rígido de 3/4\", eletroduto de PVC flexível corrugado de 3/4\" e acessórios.  Fornecimento e instalação. ","pt",15,112.58,{"$f":"E402*D402","v":1688.7}]
["22.8.21","Ponto para interruptor simples de duas seções em alvenaria, composto por fiação em cabo de cobre flexível de 2,5mm², com isolação em composto termoplástico poliolefínico não halogenado, não propagante à chama, com baixa emissão de fumaça e gases tóxicos e classe térmica 70° C (Afumex, Atox, Afitox ou equivalente (Não-Halogenado), isolação 750V, eletroduto de PVC rígido de 3/4\", eletroduto de PVC flexível corrugado de 3/4\" e acessórios.  Fornecimento e instalação. ","pt",1,125.47999999999999,{"$f":"E403*D403","v":125.47999999999999}]
["22.8.22","Ponto para interruptor simples de três seções em drywall, composto por fiação em cabo de cobre flexível de 2,5mm², com isolação em composto termoplástico poliolefínico não halogenado, não propagante à chama, com baixa emissão de fumaça e gases tóxicos e classe térmica 70° C (Afumex, Atox, Afitox ou equivalente (Não-Halogenado), isolação 750V, eletroduto de PVC rígido de 3/4\", eletroduto de PVC flexível corrugado de 3/4\" e acessórios.  Fornecimento e instalação. ","pt",1,90.11,{"$f":"E404*D404","v":90.11}]
["22.8.23","Ponto para interruptor simples de duas seções em drywall, composto por fiação em cabo de cobre flexível de 2,5mm², com isolação em composto termoplástico poliolefínico não halogenado, não propagante à chama, com baixa emissão de fumaça e gases tóxicos e classe térmica 70° C (Afumex, Atox, Afitox ou equivalente (Não-Halogenado), isolação 750V, eletroduto de PVC rígido de 3/4\", eletroduto de PVC flexível corrugado de 3/4\" e acessórios.  Fornecimento e instalação. ","pt",1,89.9,{"$f":"E405*D405","v":89.9}]
["22.8.24","Ponto para interruptor simples de uma seção em drywall, composto por fiação em cabo de cobre flexível de 2,5mm², com isolação em composto termoplástico poliolefínico não halogenado, não propagante à chama, com baixa emissão de fumaça e gases tóxicos e classe térmica 70° C (Afumex, Atox, Afitox ou equivalente (Não-Halogenado), isolação 750V, eletroduto de PVC rígido de 3/4\", eletroduto de PVC flexível corrugado de 3/4\" e acessórios.  Fornecimento e instalação. ","pt",41,76.180000000000007,{"$f":"E406*D406","v":3123.38}]
["22.8.25","Ponto para interruptor paralelo de duas seções em drywall, composto por fiação em cabo de cobre flexível de 2,5mm², com isolação em composto termoplástico poliolefínico não halogenado, não propagante à chama, com baixa emissão de fumaça e gases tóxicos e classe térmica 70° C (Afumex, Atox, Afitox ou equivalente (Não-Halogenado), isolação 750V, eletroduto de PVC rígido de 3/4\", eletroduto de PVC flexível corrugado de 3/4\" e acessórios.  Fornecimento e instalação. ","pt",37,108.32,{"$f":"E407*D407","v":4007.8399999999997}]
["22.8.26","Ponto para interruptor paralelo de uma seção em drywall, composto por fiação em cabo de cobre flexível de 2,5mm², com isolação em composto termoplástico poliolefínico não halogenado, não propagante à chama, com baixa emissão de fumaça e gases tóxicos e classe térmica 70° C (Afumex, Atox, Afitox ou equivalente (Não-Halogenado), isolação 750V, eletroduto de PVC rígido de 3/4\", eletroduto de PVC flexível corrugado de 3/4\" e acessórios.  Fornecimento e instalação. ","pt",3,77.17,{"$f":"E408*D408","v":231.51}]
["22.8.27","Ponto para interruptor paralelo de 2 seções em alvenaria, composto por fiação em cabo de cobre flexível de 2,5mm², com isolação em composto termoplástico poliolefínico não halogenado, não propagante à chama, com baixa emissão de fumaça e gases tóxicos e classe térmica 70° C (Afumex, Atox, Afitox ou equivalente (Não-Halogenado), isolação 750V, eletroduto de PVC rígido de 3/4\" e acessórios.  Fornecimento e instalação. ","pt",8,128.81,{"$f":"E409*D409","v":1030.48}]
["22.8.28","Ponto para tomada 2p+t (simples) em alvenaria, composto por fiação em cabo de cobre flexível de 2,5mm², com isolação em composto termoplástico poliolefínico não halogenado, não propagante à chama, com baixa emissão de fumaça e gases tóxicos e classe térmica 70° C (Afumex, Atox, Afitox ou equivalente (Não-Halogenado), isolação 750V, eletroduto de PVC rígido de 3/4\", eletroduto de PVC flexível corrugado de 3/4\" e acessórios.  Fornecimento e instalação. ","pt",41,122.66,{"$f":"E410*D410","v":5029.0599999999995}]
["22.8.29","Ponto para tomada 2p+t (simples) em drywall, composto por fiação em cabo de cobre flexível de 2,5mm², com isolação em composto termoplástico poliolefínico não halogenado, não propagante à chama, com baixa emissão de fumaça e gases tóxicos e classe térmica 70° C (Afumex, Atox, Afitox ou equivalente (Não-Halogenado), isolação 750V, eletroduto de PVC rígido de 3/4\", eletroduto de PVC flexível corrugado de 3/4\" e acessórios.  Fornecimento e instalação. ","pt",37,108.1,{"$f":"E411*D411","v":3999.7}]
["22.8.30","Ponto no piso para tomada universal (2p+t), inclusive fiação em cabo de 2,5mm² Prysmian ou equivalente e eletroduto de PVC rígido de 3/4\" com luva de rosca interna, curva e acessórios até outro ponto/eletrocalha.","pt",3,175.84,{"$f":"E412*D412","v":527.52}]
["22.8.31","Ponto de força monofásico (F+N+T) para exaustores do sistema de ar condicionado, composto por fiação em cabo de 2,5mm² AFUMEX, ATOX, AFITOX ou equivalente (Não-Halogenado), isolação 750V, e eletroduto PVC rígido de 3/4\" com luva de rosca interna, curva e acessórios até a eletrocalha.","pt",8,370.84000000000003,{"$f":"E413*D413","v":2966.7200000000003}]
["22.8.32","Ponto de força para split (condensadora) composto por fiação em cabo de cobre flexível de  4,0mm², com isolação em composto termoplástico poliolefínico não halogenado, não propagante à chama, com baixa emissão de fumaça e gases tóxicos e classe térmica 70° C (Afumex, Atox, Afitox ou equivalente (Não-Halogenado), isolação 750V, eletroduto de PVC rígido de 1\", eletroduto de PVC flexível corrugado de 1\" e acessórios.  Fornecimento e instalação. ","pt",16,492.62,{"$f":"E414*D414","v":7881.92}]
["22.8.33","Ponto de força monofásico (F+N+T) para unidades evaporadoras do sistema de ar condicionado (cassete), composto por fiação em cabo de 4mm² AFUMEX, ATOX, AFITOX ou equivalente (Não-Halogenado), isolação 750V, e eletroduto de metálico rígido de 1\" com luva de rosca interna, curva e acessórios, seal tube e acessórios até a eletrocalha.","pt",8,502.6,{"$f":"E415*D415","v":4020.8}]
["22.8.34","Ponto de força para bomba de recalque composto por fiação em cabo de cobre flexível de 4,0mm², com isolação em composto termoplástico poliolefínico não halogenado, não propagante à chama, com baixa emissão de fumaça e gases tóxicos e classe térmica 70° C (Afumex, Atox, Afitox ou equivalente (Não-Halogenado), isolação 1kV, eletroduto de PVC rígido de 3/4\" e acessórios.  Fornecimento e instalação. ","pt",1,1986.4299999999998,{"$f":"E416*D416","v":1986.4299999999998}]
["22.8.35","Ponto de comando para chave boia composto por fiação em cabo de cobre flexível de 2,5mm², anti-chama 0,6/1,0 kV, eletroduto de PVC rígido de 3/4\" e acessórios.  Fornecimento e instalação. ","pt",1,348.5,{"$f":"E417*D417","v":348.5}]
["-","SPDA","-","-",0,"-"]
["22.9","CONDUTOS","-","-",0,"-"]
["22.9.1","Eletroduto de PVC rígido rosqueável de 1\", com luva de rosca interna e acessórios instalado em parede/piso. Fornecimento e instalação.","m",19.62,18.62,{"$f":"E420*D420","v":365.32440000000003}]
["22.9.2","Eletroduto rígido roscável, PVC, DN 25mm(3/4\"), para circuitos terminais, instalado em forro - Fornecimento e instalação.","pt",30.05,13.11,{"$f":"E421*D421","v":393.95549999999997}]
["22.9.3","Eletroduto de aço galvanizado tipo leve de 3/4\", com luva de rosca interna e acessórios instalado em parede. Fornecimento e instalação.","und",7,23.39,{"$f":"E422*D422","v":163.73000000000002}]
["22.10","CONDUTORES","-","-",0,"-"]
["22.10.1","Cabo de cobre nu, têmpera meio-duro, encordoamento classe 2, seção nominal de 16,0mm². Fornecimento e instalação.","m",10.050000000000001,23,{"$f":"E424*D424","v":231.15}]
["22.10.2","Cordoalha em cabo de cobre nu, têmpera meio-duro, encordoamento classe 2, seção nominal de 35,0mm², não enterrada, fixada com presilha de latão para cabo de 35mm², inclusive parafuso em aço inox fenda DN 4,2x32mm, bucha nylon DN 6mm e vedação dos furos com selante poliuretano, marca de ref. Termotécnica ou equivalente. Fornecimento e instalação.","m",275.29000000000002,51.28,{"$f":"E425*D425","v":14116.871200000001}]
["22.10.3","Cabo de cobre nu, têmpera meio-duro, encordoamento classe 2, seção nominal de 50,0mm². Fornecimento e instalação.","m",22,57.56,{"$f":"E426*D426","v":1266.3200000000002}]
["22.10.4","Cabo de cobre nu, têmpera meio-duro, encordoamento classe 2, seção nominal de 50,0mm², assentado em valas com profundidade de 0,60m, inclusive escavação e reaterro. Fornecimento e instalação.","m",267.56,76.959999999999994,{"$f":"E427*D427","v":20591.417599999997}]
["22.10.5","Cabo de cobre resistente à chama (Não-Halogenado), isolação 0,6/1kV., de 2,5mm². , inclusive instalação em eletroduto/eletrocalha/leito.","m",57.3,5.25,{"$f":"E428*D428","v":300.82499999999999}]
["22.11","QUADROS/PROTEÇÃO","-","-",0,"-"]
["22.11.1","Caixa de equalização de potenciais para uso interno e externo com 11 (onze) terminais para aterramento (BEP), em polipropileno, ref. TEL-900, marca de referência Termotécnica ou equivalente. Fornecimento e instalação.","und",1,279.09999999999997,{"$f":"E430*D430","v":279.09999999999997}]
["22.11.2","Disjuntor monopolar termomagnético de 2A Eletromar padrão IEC ou equivalente, inclusive instalação em quadro de distribuição, conforme projeto.","und",1,91.23,{"$f":"E431*D431","v":91.23}]
["22.12","ATERRAMENTO","-","-",0,"-"]
["22.12.1","Haste de aterramento (tipo copperweld) de  5/8\" x 3,0 m. Fornecimento e instalação","und",7,88.82,{"$f":"E433*D433","v":621.74}]
["22.12.2","Solda exotérmica para cabo-haste. Fornecimento e instalação.","und",22,269.25,{"$f":"E434*D434","v":5923.5}]
["22.12.3","Conector parafuso fendido split-bolt para cabo de 35mm². Fornecimento e instalação.","und",42,14.280000000000001,{"$f":"E435*D435","v":599.76}]
["22.12.4","Solda exotérmica para cabo50mm²-cabo 50mm². Fornecimento e instalação.","und",10,250.8,{"$f":"E436*D436","v":2508}]
["22.12.5","Mastro telescópico de 3m (3mx2\" e 1m2.1/2\"), incl. base de fixação 2\", captor tipo Franklin em latão cromado (2 descidas), abraçadeiras guia simples e reforçadas para duas descidas, conj. de contraventagem com abraçadeira para 3 estais em tubo de 2m e demais acessórios de fixação. ref. Termotécnica, Montal ou equivalente. Fornecimento e instalação.","cj",1,838.23,{"$f":"E437*D437","v":838.23}]
["22.12.6","Ponto para Aparelho sinalizador de obstáculos noturno com caixa de montagem para DPS - TEL 920; conjunto sinalizador  LED sensor e mastro - TEL 614; DPS classe II, 1 polo tensão máxima de 275V,  com fotocélula. Fornecimento e instalação.","cj",3,377.28999999999996,{"$f":"E438*D438","v":1131.8699999999999}]
["22.12.7","Caixa de Inspeção Suspensa em Polipropileno, com tampa, anti-UV e anti-chama -TEL 541, Termotécnica ou equivalente. Fornecimento e instalação.","und",7,80,{"$f":"E439*D439","v":560}]
["22.12.8","Conector de medição em latão com 2 parafusos para cabos de 35 a 70 mm2, ref. TEL-562, Termotécnica ou equivalente. Fornecimento e instalação.","und",14,38.869999999999997,{"$f":"E440*D440","v":544.17999999999995}]
["22.12.9","Conjunto parafuso cabeça sextavada, TEL 5329, porca sextavada TEL5314","und",7,3.33,{"$f":"E441*D441","v":23.310000000000002}]
["22.12.10","Terminal a compressão em cobre estanhado  para cabo de 16mm², 1 furo, incluisive parafuso sextavado em aço inox 1/4\"x1.1/4\", arruelas lisas e porca sextavada de 1/4\". Fornecimento e instalação","cj",2,21.36,{"$f":"E442*D442","v":42.72}]
["22.12.11","Terminal a compressão em cobre estanhado para cabo de 50mm², 1 furo, incluisive parafuso sextavado em aço inox 1/4\"x1.1/4\", arruelas lisas e porca sextavada de 1/4\". Fornecimento e instalação","cj",57,30.200000000000003,{"$f":"E443*D443","v":1721.4}]
["22.12.12","Terminal a compressão em cobre estanhado para cabo de 35mm², 1 furo, incluisive parafuso sextavado em aço inox 1/4\"x1.1/4\", arruelas lisas e porca sextavada de 1/4\". Fornecimento e instalação","cj",2,4.0199999999999996,{"$f":"E444*D444","v":8.0399999999999991}]
["22.12.13","Caixa de aterramento em PVC, com tampa de ferrro fundido- 300mm de diâmetro. Fornecimento e instalação.","und",7,107.25,{"$f":"E445*D445","v":750.75}]
["22.12.14","Bucha de nylon º 6, TEL 5306","m",276,44.809999999999995,{"$f":"E446*D446","v":12367.56}]
["22.12.15","Bucha de nylon º 8, TEL 5306","m",4,1.01,{"$f":"E447*D447","v":4.04}]
["22.13","CAIXAS","-","-",0,"-"]
["22.13.1","Caixa retangular 4x4\", em PVC, instalada em alvenaria. Fornecimento e instalação","und",1,15.11,{"$f":"E449*D449","v":15.11}]
["22.13.2","Placa cega  para caixa 4x4\", composta por suporte e placa na cor branca, Pialplus ou equivalente. Fornecimento e instalação.","cj",1,10.26,{"$f":"E450*D450","v":10.26}]
["22.13.3","Luva de redução de ferro galvanizado, com rosca BSP macho/femea, de 1\"x3/4\"","-",1,44.269999999999996,{"$f":"E451*D451","v":44.269999999999996}]
["22.13.4","Condulete de alumínio com tampa, tipo LR, para eletroduto roscável de 3/4\", aparente, inclusive acessórios de fixação. Fornecimento e instalação.","und",3,28.27,{"$f":"E452*D452","v":84.81}]
["22.13.5","Condulete de alumínio com tampa, tipo LR, para eletroduto roscável de 1\", aparente, inclusive acessorios de fixação. Fornecimento e instalação.","und",1,35.230000000000004,{"$f":"E453*D453","v":35.230000000000004}]
["22.13.6","Condulete de alumínio com tampa, tipo T, para eletroduto roscável de 1\", aparente, inclusive acessorios de fixação. Fornecimento e instalação.","und",1,42.97,{"$f":"E454*D454","v":42.97}]
["22.13.7","Condulete em liga de alumínio com tampa, tipo LB, para eletroduto roscável de 3/4\", aparente, inclusive acessorios de fixação. Fornecimento e instalação.","und",1,31.85,{"$f":"E455*D455","v":31.85}]
["22.13.8","Condulete em liga de alumínio com tampa, tipo LL, para eletroduto roscável de 3/4\", aparente, inclusive acessorios de fixação. Fornecimento e instalação.","und",1,31.85,{"$f":"E456*D456","v":31.85}]
["22.14","SUBESTAÇÃO","-","-",0,"-"]
["22.14.1","Fornecimento de Cruzeta tipo T 1900mm, inclusive acessórios para a instalação e assentamento em poste","und",3,326.34000000000003,{"$f":"E458*D458","v":979.0200000000001}]
["22.14.2","Fornecimento e instalação de Para-raio 12 kV - 10 kA Fornecimento e instalação","und",3,288.91000000000003,{"$f":"E459*D459","v":866.73}]
["22.14.3","Fornecimento e instalação de isolador polimérico de 15kV. Fornecimento e instalação","und",9,92,{"$f":"E460*D460","v":828}]
["22.14.4","Pino Rosca Externa, Em Aco Galvanizado, Para Isolador De 15kV, Diametro 25 mm, Comprimento *290* mm","m",9,65.05,{"$f":"E461*D461","v":585.44999999999993}]
["22.14.5","Fornecimento e Instalação de Transformador de 75 kVA - 15 kV","und",1,18705.669999999998,{"$f":"E462*D462","v":18705.669999999998}]
["22.14.6"," Caixa de medição modelo F3, padrão CELPE. Fornecimento e instalação.","m",1,745.47,{"$f":"E463*D463","v":745.47}]
["22.14.7","Eletroduto de Ferro Galvanizado Pesado de 1.1/4\", com luva de rosca interna, assentado em valas com profundidade de 0,60m, inclusive escavação e reaterro. Fornecimento e instalação.","und",5,274.54000000000002,{"$f":"E464*D464","v":1372.7}]
["22.14.8","Curva de ferro galvanizado pesado de 2\", inclusive assentamento em poste e demais acessórios de fixação. Fornecimento e instalação","und",3,153.79000000000002,{"$f":"E465*D465","v":461.37000000000006}]
["22.14.9","Luva de ferro galvanizado pesado de 1.1/4\", inclusive assentamento em poste e demais acessórios de fixação.","und",2,95.92,{"$f":"E466*D466","v":191.84}]
["22.14.10","Eletroduto de PVC rígido rosqueável de 1.1/4\", com luva de rosca interna, assentado em valas com profundidade de 0,60m, inclusive escavação e reaterro. Fornecimento e instalação.","und",5,76.89,{"$f":"E467*D467","v":384.45}]
["22.14.11","Curva de PVC Rígido de 1 1/4\" inclusive assentamento em poste e demais acessórios de fixação. Fornecimento e instalação","und",3,96.960000000000008,{"$f":"E468*D468","v":290.88}]
["22.14.12","Luva de PVC Rígido de 1 1/4\", inclusive assentamento em poste e demais acessórios de fixação.","und",3,94.47,{"$f":"E469*D469","v":283.40999999999997}]
["22.14.13","Cabo de cobre isolado EPR, flexivel, 35mm², 12/20kv / 90º C (Eprotenax ou similar)","und",440,53.81,{"$f":"E470*D470","v":23676.400000000001}]
["22.14.14","Conector Metalico Tipo Parafuso Fendido (Split Bolt), para Cabos até 50 mm2","und",20,23.05,{"$f":"E471*D471","v":461}]
["22.14.15","Poste De Concreto Duplo T, Resistência Nominal 600kg, H=11,00m,Fornecimento E Instalação","und",1,1172.02,{"$f":"E472*D472","v":1172.02}]
["22.14.16","Solda exotérmica para cabo-haste. Fornecimento e instalação.","und",4,59.319999999999993,{"$f":"E473*D473","v":237.27999999999997}]
["22.14.17","Haste de aterramento (tipo copperweld) de  5/8\" x 3,0 m. Fornecimento e instalação","und",4,88.82,{"$f":"E474*D474","v":355.28}]
["22.14.18","Caixa de Inspeção Suspensa em Polipropileno, com tampa, anti-UV e anti-chama -TEL 541, Termotécnica ou equivalente. Fornecimento e instalação.","und",4,80,{"$f":"E475*D475","v":320}]
["22.14.19","Cabo de cobre nu, têmpera meio-duro, encordoamento classe 2, seção nominal de 50,0mm², assentado em valas com profundidade de 0,60m, inclusive escavação e reaterro. Fornecimento e instalação.","m",50,57.56,{"$f":"E476*D476","v":2878}]
["23.0","INFRAESTRUTURA PARA USINA FOTOVOLTAICA","-","-",0,"-"]
["23.1","Eletroduto de aço galvanizado pesado 2\".","m",108.12,354.40000000000003,{"$f":"E478*D478","v":38317.728000000003}]
["23.2","Eletroduto de aço galvanizado pesado,  3/4\".","m",117,135.09,{"$f":"E479*D479","v":15805.53}]
["23.3","Condulete em liga de alumínio fundido tipo C, 2\"  a prova de tempo, gases,vapores e pós, com tampa.","und",2,76.41,{"$f":"E480*D480","v":152.82}]
["23.4","Condulete em liga de alumínio fundido tipo LL roscável, para eletrodudo de 2\" com tampa, inclusive acessórios de fixação, fornecimento e instalação.","und",2,99.65,{"$f":"E481*D481","v":199.3}]
["23.5","Condulete de alumínio com tampa, tipo LR, para eletroduto roscável de 2\", com tampa, inclusive acessórios de fixação.","und",5,63.45,{"$f":"E482*D482","v":317.25}]
["23.6","Condulete em liga de alumínio com tampa, tipo T, para eletroduto roscável de 2\", com tampa, inclusive acessorios de fixação. Fornecimento e instalação.","und",7,70.239999999999995,{"$f":"E483*D483","v":491.67999999999995}]
["23.7","Luva para letroduto em aço galvanizado 2\"","und",21,26.85,{"$f":"E484*D484","v":563.85}]
["23.8","Abraçadeira em aço para amarração de eletroduto, tipo D com 2\" e cunha de fixação","und",118,8.68,{"$f":"E485*D485","v":1024.24}]
["23.9","Bucha de nylon º 6, TEL 5306","m",118,44.809999999999995,{"$f":"E486*D486","v":5287.579999999999}]
["23.10","Parafuso fenda galvanizada, cabela de panela 4,2x32mm, auto-atarrachante","und",118,1.1000000000000001,{"$f":"E487*D487","v":129.80000000000001}]
["23.11","Condulete em liga de alumínio fundido tipo LL roscável, para eletrodudo de 3/4\" com tampa..","und",4,34.39,{"$f":"E488*D488","v":137.56}]
["23.12","Condulete em liga de alumínio com tampa, tipo T, para eletroduto roscável de 3/4\", com tampa, inclusive acessorios de fixação. Fornecimento e instalação.","und",3,32.99,{"$f":"E489*D489","v":98.97}]
["23.13","Condulete de alumínio com tampa, tipo LR, para eletroduto roscável de 3/4\", com tampa.","und",1,28.62,{"$f":"E490*D490","v":28.62}]
["23.14","Condulete em liga de alumínio com tampa, tipo X, para eletroduto roscável de 3/4\", com tampa.","und",2,39.28,{"$f":"E491*D491","v":78.56}]
["23.15","Caixa metálica de passagem 200x200x100mm, de sobrepor, corpo em chapa de aço com pintura eletrostática, com tampa cega, para passagem/ inspeção de tubulações elétricas e telefônicas","und",3,81.400000000000006,{"$f":"E492*D492","v":244.20000000000002}]
["24.0","OBRAS CIVIL","-","-",0,"-"]
["24.1","Caixa de passagem com paredes em alvenaria, laje de tampa em concreto armado e fundo em brita (alt.=10cm), revestida internamente com argamassa no traço 1:4 (cimento e areia média) com preparo manual, dimensões internas (0,30x0,30)m, com profundidade de 0,40m, inclusive escavação, remoção e reaterro.","un",4,263.64999999999998,{"$f":"E494*D494","v":1054.5999999999999}]
["24.2","Caixa de passagem com paredes em alvenaria, laje de tampa em concreto armado e fundo em brita (alt.=10cm), revestida internamente com argamassa no traço 1:4 (cimento e areia média) com preparo manual, dimensões internas (0,80x0,80)m, com profundidade de 1,00m, inclusive escavação, remoção e reaterro.","un",5,1337.35,{"$f":"E495*D495","v":6686.75}]
["24.3","Caixa de passagem com paredes em alvenaria, laje de tampa em concreto armado e fundo em brita (alt.=10cm), revestida internamente com argamassa no traço 1:4 (cimento e areia média) com preparo manual, dimensões internas (0,40x0,40)m, com profundidade de 0,50m, inclusive escavação, remoção e reaterro.","un",3,415.95000000000005,{"$f":"E496*D496","v":1247.8500000000001}]
["24.4","Caixa de passagem com paredes em alvenaria, laje de tampa em concreto armado e fundo em brita (alt.=10cm), revestida internamente com argamassa no traço 1:4 (cimento e areia média) com preparo manual, dimensões internas (0,30x0,30)m, com profundidade de 0,30m, inclusive escavação, remoção e reaterro.","un",34,221,{"$f":"E497*D497","v":7514}]
["24.5","Caixa de passagem com paredes em alvenaria, laje de tampa em concreto armado e fundo em brita (alt.=10cm), revestida internamente com argamassa no traço 1:4 (cimento e areia média) com preparo manual, dimensões internas (0,60x0,60)m, com profundidade de 0,60m, inclusive escavação, remoção e reaterro.","un",1,641.6,{"$f":"E498*D498","v":641.6}]
["24.6","Caixa de passagem com paredes em alvenaria, laje de tampa em concreto armado e fundo em brita (alt.=10cm), revestida internamente com argamassa no traço 1:4 (cimento e areia média) com preparo manual, dimensões internas (0,60x0,35)m, com profundidade de 0,50m, inclusive escavação, remoção e reaterro.","un",3,446.45000000000005,{"$f":"E499*D499","v":1339.3500000000001}]
["24.7","Caixa de passagem com paredes em alvenaria, laje de tampa em concreto armado e fundo em brita (alt.=10cm), revestida internamente com argamassa no traço 1:4 (cimento e areia média) com preparo manual, dimensões internas (0,30x0,30)m, com profundidade de 0,50m, inclusive escavação, remoção e reaterro.","un",8,284.48,{"$f":"E500*D500","v":2275.84}]
["24.8","Base em alvenaria com dimensões de (3,00x3,00x0,20)m, inclusive lastro de piso, espessura 10cm e piso cimentado com argamassa de cimento e areia no traço 1:3 espessura 2cm.","un",1,150.03,{"$f":"E501*D501","v":150.03}]
["24.9","Envelopamento em concreto armado pronto para assentamento de tubo 4\" , inclusive escavação, remoção e reaterro.","m",20,90.240000000000009,{"$f":"E502*D502","v":1804.8000000000002}]
["25.0","INSTALAÇÕES HIDROSSANITÁRIAS","-","-",0,"-"]
["25.1","ALIMENTAÇÃO DE AF E TUB. TORNEIRAS DE JARDIM/SUÇÃO/RECALQUE","-","-",0,"-"]
["25.1.1","Fornecimento e assentamento de tubos soldáveis de PVC rígido diâmetro 25 mm, inclusive conexões  abertura e fechamento de valas.","m",220,19.75,{"$f":"E505*D505","v":4345}]
["25.1.2","Fornecimento e assentamento de tubos soldáveis de PVC rígido diâmetro 32 mm, inclusive conexões  abertura e fechamento de valas para alimentador predial.","m",20,25.23,{"$f":"E506*D506","v":504.6}]
["25.2","LIMPEZA/EXTRAVASOR/SUSPIRO DO BARRILETE/TUBULAÇÃO DE AVISO","-","-",0,"-"]
["25.2.1","Fornecimento e assentamento de tubos soldáveis de PVC rígido diâmetro 25 mm, inclusive conexões e abertura de rasgos em alvenaria, para colunas de água e barriletes.","m",160,21.47,{"$f":"E508*D508","v":3435.2}]
["25.2.2","Fornecimento e assentamento de tubos soldáveis de PVC rígido diâmetro 40 mm, inclusive conexões e abertura de rasgos em alvenaria, para colunas de água e barriletes.","m",60,37.35,{"$f":"E509*D509","v":2241}]
["25.3","REGISTROS ","-","-",0,"-"]
["25.3.1","Fornecimento de registro de gaveta com canopla, acabamento cromado, ref. 1509-C39, Deca ou similar, linha prata, diâmetro de 3/4 pol., inclusive fixação.","un",13,112.57,{"$f":"E511*D511","v":1463.4099999999999}]
["25.3.2","Registro de gaveta bruto, latão, roscável, 1 1/4\", com acabamento e canopla cromados, instalado em reservação de água de edificação que possua Reservatório de Fibra/Fibrocimento. \u0096 Fornecimento e instalação. ","un",6,149.92999999999998,{"$f":"E512*D512","v":899.57999999999993}]
["25.3.3","Fornecimento de registro de gaveta com canopla, acabamento cromado, ref. 1509-C39, Deca ou similar, linha prata, diâmetro de 1 pol., inclusive fixação.","un",4,115.43,{"$f":"E513*D513","v":461.72}]
["25.3.4","Fornecimento de registro de pressão com canopla, acabamento cromado, ref. 1416, Fabrimar ou similar, diâmetro de 3/4 pol., inclusive fixação.","un",4,108.1,{"$f":"E514*D514","v":432.4}]
["25.3.5","Registro de esfera, PVC, roscável, 3/4\", fornecido e instalado em ramal de água.","un",1,31.04,{"$f":"E515*D515","v":31.04}]
["25.4","BOMBAS E ACESSÓRIOS","-","-",0,"-"]
["25.4.1","Fornecimento e instalação de válvula de retenção horizontal, diâmetro 3/4\", fabricação DOCOL ou equivalente.","und",1,125.99,{"$f":"E517*D517","v":125.99}]
["25.4.2","Torneira de bóia real, roscável, 3/4\", fornecida e instalada em reservação de água.","und",1,32.36,{"$f":"E518*D518","v":32.36}]
["25.4.3","Chave de boia automática superior/inferior 15A/250v - fornecimento e instalação. ","und",2,72.650000000000006,{"$f":"E519*D519","v":145.30000000000001}]
["25.4.4","Bomba recalque d'agua trifásica 1CV.","und",2,1543.1599999999999,{"$f":"E520*D520","v":3086.3199999999997}]
["25.5","PONTOS DE ÁGUA FRIA E ESGOTO ","-","-",0,"-"]
["25.5.1","Ponto de água, inclusive tubulações e conexões de PVC rígido soldável e abertura de rasgos em alvenaria, até o registro geral do ambiente.","pt",45,102.25,{"$f":"E522*D522","v":4601.25}]
["25.5.2","Ponto de esgoto para bacia sanitária, inclusive tubulações e conexões em PVC rígido soldáveis, até a coluna ou o sub-coletor.","pt",12,130.74,{"$f":"E523*D523","v":1568.88}]
["25.5.3","Ponto de esgoto para pia ou lavandaria, inclusive tubulações e conexões em PVC rígido soldáveis, até a coluna ou o sub-coletor.","pt",2,131.98000000000002,{"$f":"E524*D524","v":263.96000000000004}]
["25.5.4","Ponto de esgoto para lavatório ou mictório, inclusive tubulações e conexões em PVC rígido soldáveis, até a coluna ou o sub-coletor.","pt",13,131.66,{"$f":"E525*D525","v":1711.58}]
["25.5.5","Ponto de esgoto para ralo sifonado, inclusive ralo, tubulações e conexões em PVC rígido soldáveis, até a coluna ou o sub-coletor.","pt",15,129.19,{"$f":"E526*D526","v":1937.85}]
["25.6","TUBULAÇÃO DE ESGOTO - RAMAIS DE DESCARGA, RAMAIS DE ESGOTO E SUBCOLETORES","-","-",0,"-"]
["25.6.1","Tubulação PVC esgoto predial Ø 40mm, para coletores ou sub-coletores de esgoto ou águas pluviais, inclusive abertura e fechamento de valas.","m",100,19.05,{"$f":"E528*D528","v":1905}]
["25.6.2","Fornecimento e assentamento de tubos de PVC rígidos soldáveis diâmetro 100mm para coletores e sub-coletores de esgoto ou águas pluviais, inclusive abertura e fechamento de valas.","m",150,50.120000000000005,{"$f":"E529*D529","v":7518.0000000000009}]
["25.6.3","Fornecimento e assentamento de tubos de PVC rígidos soldáveis diâmetro 50mm para coletores e sub-coletores de esgoto ou águas pluviais, inclusive abertura e fechamento de valas.  ","m",90,26.14,{"$f":"E530*D530","v":2352.6}]
["25.7","RESERVATÓRIO CILÍNDRICO","-","-",0,"-"]
["25.7.1","Fornecimento e instalação de caixa d'água em fibra de vidro com 3.000l.","un",3,1502.6699999999998,{"$f":"E532*D532","v":4508.0099999999993}]
["25.8","RAMAIS DE VENTILAÇÃO DE ESGOTO","-","-",0,"-"]
["25.8.1","Tubo pvc, serie normal, esgoto predial, dn 50 mm, fornecido e instalado em prumada de esgoto sanitário ou ventilação.","m",50,13.260000000000002,{"$f":"E534*D534","v":663.00000000000011}]
["25.9","COLUNAS E BARRILETE DE VENTILAÇÃO DE ESGOTO","-","-",0,"-"]
["25.9.1","Fornecimento e assentamento de tubos de PVC rígido soldáveis, diâmetro 50mm, para ventilação de esgoto.","m",25,51.67,{"$f":"E536*D536","v":1291.75}]
["25.9.2","Fornecimento e assentamento de tubos de PVC rígido soldáveis, diâmetro 75mm, para colunas de esgoto, ventilação ou águas pluviais.","m",10,37.22,{"$f":"E537*D537","v":372.2}]
["25.9.3","Tubo PVC, série normal, esgoto predial, DN 75mm, fornecido e instalado em ramal de descarga ou ramal de esgoto sanitário.","m",10,46.95,{"$f":"E538*D538","v":469.5}]
["25.10","CAPTAÇÃO DE ÁGUA PLUVIAL DA COBERTA E DRENOS DOS AR-CONDICIONADOS","-","-",0,"-"]
["25.10.1","Fornecimento e instalação de ralo hemisférico em plástico diâmetro de 100mm.","un",11,43.82,{"$f":"E540*D540","v":482.02}]
["25.10.2","Calha em chapa de alumínio espessura de 0,70 mm, desenvolvimento de 80cm, incluso transporte vertical.","m",130,133.11000000000001,{"$f":"E541*D541","v":17304.300000000003}]
["25.10.3","Tubo PVC série R diâmetro 100 mm.","m",80,74.44,{"$f":"E542*D542","v":5955.2}]
["25.10.4","Tubo PVC série R diâmetro 150 mm.","m",60,93.47,{"$f":"E543*D543","v":5608.2}]
["25.10.5","Tubo PVC, série R, água pluvial, DN 200 mm, Ffornecido e instalado em condutores verticais de águas pluviais.","m",55,135.38,{"$f":"E544*D544","v":7445.9}]
["25.10.6","Canaleta meia cana pré-moldada de concreto (D = 30 cm) - fornecimento e instalação.","m",133,34.979999999999997,{"$f":"E545*D545","v":4652.3399999999992}]
["25.11","LOUÇAS E METAIS SANITÁRIOS","-","-",0,"-"]
["25.11.1","Fornecimento e instalação de bacia turca Celite ou equivalente.","un",2,568.91999999999996,{"$f":"E547*D547","v":1137.8399999999999}]
["25.11.2","Fornecimento e assentamento de bacia sanitária linha Azalea, Ref. 91351, Celite, com caixa de descarga acoplada, sistema Ecoflush 3/6, Ref. 91570, cor branca, inclusive engate flexível.","un",8,468.62,{"$f":"E548*D548","v":3748.96}]
["25.11.3","Fornecimento e fixação de assento para bacia sanitária PP com caixa acoplada, fabricante Celite  ou equivalente.","un",8,114.17,{"$f":"E549*D549","v":913.36}]
["25.11.4","Fornecimento e instalação de bacia sanitária convencional sem abertura frontal, linha Acesso Confort  REF: 31310 Celite ou equivalente.","un",2,615.77,{"$f":"E550*D550","v":1231.54}]
["25.11.5","Fornecimento e fixação de assento para bacia sanitária PP sem abertura frontal, fabricante Celite, linha Acesso Confort ou equivalente.","un",2,252.11,{"$f":"E551*D551","v":504.22}]
["25.11.6","Fornecimento e assentamento de mictório de louça branca com sifão integrado e medida 33x28x53 cm ferragens em metal cromado, registro de pressão 1416 de 1/2\" e tubo de ligação 1/2\".","un",2,385.62,{"$f":"E552*D552","v":771.24}]
["25.11.7","Fornecimento e instalação de cuba de embutir oval universal Celite Ref: 10148, na cor branca ou equivalente, incluso válvula  em metal cromado, engate e sifão flexível em pvc - fornecimento e instalação. ","un",7,203.03,{"$f":"E553*D553","v":1421.21}]
["25.11.8","Fornecimento e instalação de lavatório com coluna suspensa, linha Acesso, Cód.31055, Celite ou equivalente, incluso válvula  em metal cromado, engate e sifão flexível em pvc.","un",2,465.63,{"$f":"E554*D554","v":931.26}]
["25.11.9","Tanque de louça branca com coluna, 30l ou equivalente, incluso o engate flexível em pvc - fornecimento e instalação. (DML)","un",1,607.89,{"$f":"E555*D555","v":607.89}]
["25.11.10","Fornecimento e instalação de cuba de aço inox retangular 46x30x12cm, fabricação Tramontina ou equivalente, inclusive válvula de escoamento cromada, engate flexível e sifão cromado. (COPA)","un",1,476.98,{"$f":"E556*D556","v":476.98}]
["25.11.11","Fornecimento e instalação de torneira de mesa para lavatório acionamento manual e fechamento automático, Fabrimar ou equivalente. (Wc's)","un",10,153.82,{"$f":"E557*D557","v":1538.1999999999998}]
["25.11.12","Fornecimento e instalação de torneira cromada de mesa bica móvel para cozinha, ref. 1167, linha Targa, Fabrimar ou equivalente. (COPA)","un",1,134.58000000000001,{"$f":"E558*D558","v":134.58000000000001}]
["25.11.13","Fornecimento  com instalação de TORNEIRA DE TANQUE JUNIOR  para pia   diâmetro 1/2\" ou 3/4, ref. 1193-JR , fabricação Fabrimar ou equivalente. (DML)","un",1,86.13,{"$f":"E559*D559","v":86.13}]
["25.11.14","Fornecimento de torneira amarela para jardim, diâmetro 3/4 pol., inclusive fixação.","un",9,54.74,{"$f":"E560*D560","v":492.66}]
["25.11.15","Fornecimento de válvula de escoamento metálica para descarga para mictório, com acionamento por pressão e fechamento automático, fabricação DOCOL ou equivalente, inclusive fixação.","un",4,313.83999999999997,{"$f":"E561*D561","v":1255.3599999999999}]
["25.11.16","Fornecimento de válvula de descarga linha Benefit, diâmetro 1 1/4\", referência 184906, fabricação Docol ou equivalente.","un",2,1025.78,{"$f":"E562*D562","v":2051.56}]
["25.11.17","Fornecimento de torneira de pressão para lavatório linha Benefit, fabricação Docol ou equivalente. (wc Especial).","un",2,785.99,{"$f":"E563*D563","v":1571.98}]
["25.11.18","Fornecimento e instalação de chuveiro elétrico blindado, com controle de temperatura, material plástico, dispositivo DR - potência 6.500w.","un",2,225.98000000000002,{"$f":"E564*D564","v":451.96000000000004}]
["25.12","ACESSORIOS /ACABAMENTO PARA WC´S","-","-",0,"-"]
["25.12.1","Fornecimento e assentamento de saboneteira plástica de parede, tipo dispenser para sabonete líquido, com reservatório de 800 a 1.500ml.","un",7,52.36,{"$f":"E566*D566","v":366.52}]
["25.12.2","Fornecimento e assentamento de porta papel toalha, toalheiro em plástico ABS, para papel toalha interfolheado da SANTHER, MILCLEAN, Laleka da DIXHIGIENE ou equivalente.","un",7,62.54,{"$f":"E567*D567","v":437.78}]
["25.12.3","Fornecimento e instalação de porta Papel higiênico sem tampa, linha Eco, cromada, Ref.: 337413, Expambox ou equivalente.","un",10,58.78,{"$f":"E568*D568","v":587.79999999999995}]
["25.12.4","Fornecimento de espelho cristal 4mm, colocado sobre chapas de isopor, fixado com parafuso de aço galvanizado, inclusive assentamento.","m²",6.59,457.78,{"$f":"E569*D569","v":3016.7701999999999}]
["25.12.5","Fornecimento e assentamento de barra de apoio, em aço inox, Wc PPNE, diâmetro de 1 1/2\", L= 0,40m de comprimento, fixada na parede com parafusos, conforme detalhes de arquitetura. ","un",4,114.05,{"$f":"E570*D570","v":456.2}]
["25.12.6","Fornecimento e assentamento de barra de apoio, em aço inox, Wc PPNE, diâmetro de 1 1/2\", L= 0,70m de comprimento, fixada na parede com parafusos, conforme detalhes de arquitetura. ","un",2,203.19,{"$f":"E571*D571","v":406.38}]
["25.12.7","Fornecimento e assentamento de barra de apoio, em aço inox, Wc PPNE, diâmetro de 1 1/2\", L= 0,80m de comprimento fixada na parede com parafusos, conforme detalhes de arquitetura. ","un",4,214.14000000000001,{"$f":"E572*D572","v":856.56000000000006}]
["26.0","DESTINO FINAL DE ESGOTO","-","-",0,"-"]
["26.1","CAIXAS DE GORDURA, COLETORA, SUB-COLETORA E OUTRAS OUTRAS DO DESTINO FINAL DE ESGOTO","-","-",0,"-"]
["26.1.1","Caixa coletora de inspeção ou de areia com paredes em alvenaria, laje de tampa e de fundo em concreto, revestida internamente com argamassa de cimento e areia 1:4, dimensões internas 0,60 x 0,60m, com profundidade até 1,0m com inscrição em baixo relevo.","un",18,793.07999999999993,{"$f":"E575*D575","v":14275.439999999999}]
["26.1.2","Caixa de gordura com paredes em alvenaria, laje de tampa e de fundo em concreto, revestida internamente com argamassa de cimento e areia 1:4, dimensões internas 0,50 x 0,50 x 0,50m com chicana de concreto.","un",1,501.35,{"$f":"E576*D576","v":501.35}]
["27.0","SISTEMA DE INCÊNDIO","-","-",0,"-"]
["27.1","EXTINTOR DE INCÊNDIO","-","-",0,"-"]
["27.1.1","Extintor de incêndio portátil com carga de pqs de 4 kg, classe bc - fornecimento e instalação. ","un",5,232.89,{"$f":"E579*D579","v":1164.4499999999998}]
["27.1.2","Extintor de incêndio portátil com carga de co2 de 6 kg, classe bc - fornecimento e instalação. ","un",2,764.1,{"$f":"E580*D580","v":1528.2}]
["27.1.3","Placa de sinalização de extintor 20 x 20 cm - fornecimento e instalação.","un",7,44.199999999999996,{"$f":"E581*D581","v":309.39999999999998}]
["27.1.4"," Demarcação com tinta acrílica para pisos, faixas de 10cm de largura (sinalização de piso dos equipamentos de combate a incêndio).","m",28,27.47,{"$f":"E582*D582","v":769.16}]
["27.2","SISTEMA DE SINALIZAÇÃO DE EMERGÊNCIA","-","-",0,"-"]
["27.2.1","Fornecimento e instalação de placa de sinalização de segurança contra incêndio, fotoluminescente, retangular, *13x26*cm, em PVC *2* mm anti-chamas (símbolos , cores e pictogramas; conforme NBR13434); conforme projeto.","un",17,38.799999999999997,{"$f":"E584*D584","v":659.59999999999991}]
["27.3","SISTEMA DE ILUMINAÇAO DE EMERGÊNCIA","-","-",0,"-"]
["27.3.1","Luminária de emergência com 30 LEDs tipo bloco (substitui as 2x11W), com bateria selada, autonomia de 6h para fluxo máximo e 3h para fluxo mínimo, bivolt, de aclaramento.","un",12,25.32,{"$f":"E586*D586","v":303.84000000000003}]
["27.3.2","Luminária de emergência com 30 LEDs tipo bloco (substitui as 2x11W), com bateria selada, autonomia de 6h para fluxo máximo e 3h para fluxo mínimo, bivolt, de balizamento.","un",3,25.32,{"$f":"E587*D587","v":75.960000000000008}]
["28.0","IDENTIDADE VISUAL","-","-",0,"-"]
["28.1","Fornecimento e assentamento do conjunto de mastros para bandeira (3und) em tubo de ferro galvanizado de 2 1/2\", 2\" e 1 1/2\", conforme detalhes, inclusive pintura anticorrosiva e pintura em esmalte sintético, cor a definir.","m",19,119.57,{"$f":"E589*D589","v":2271.83}]
["28.2","Fornecimento e instalação de letreiro \"FÓRUM DE TAMANDARÉ\" com letras tipo caixa, fonte Arial Black, com 10,00 cm de profundidade, altura com 30,00 cm, chapa 20, em aço inox 316L escovado, com sistema de fixação em pregos e buchas ou perfil tipo \"L\". (Conforme Detalhe ) ","un",18,178.4,{"$f":"E590*D590","v":3211.2000000000003}]
["28.3","Fornecimento e fixação de brasão do Estado de Pernambuco em latão fundido, alto relevo, nas dimensões aproximadas 0,70m x 0,71m, inclusive parafusos de inox, conforme modelo.","un",1,26393.59,{"$f":"E591*D591","v":26393.59}]
["29.0","COBERTA ","-","-",0,"-"]
["29.1","Trama de madeira composta por terças para telhados de até 2 águas para telha ondulada de fibrocimento, metálica, plástica ou termoacústica, incluso transporte vertical. ","m²",495.65,19.14,{"$f":"E593*D593","v":9486.741}]
["29.2","Telhamento com telha ondulada de fibrocimento e = 8 mm, com recobrimento lateral de 1 1/4 de onda para telhado com inclinação máxima de 10°, com até 2 águas, incluso içamento.","m²",495.65,202.84,{"$f":"E594*D594","v":100537.64599999999}]
["29.3","Cumeeira para telha de fibrocimento ondulada e = 6 mm, incluso acessórios de fixação e içamento. ","m",63.73,88.47,{"$f":"E595*D595","v":5638.1930999999995}]
["29.4","Concreto   armado   pronto,   Fck   15MPa,   condição   B   (NBR   12655), lançado   em   lajes   e   adensado,   inclusive   forma,   escoramento   e ferragem. (Rufos e calhas em concreto)","m³",2.2999999999999998,3469.87,{"$f":"E596*D596","v":7980.7009999999991}]
["30.0","CLIMATIZAÇÃO","-","-",0,"-"]
["30.1","Fornecimento e Instalação, conforme projeto, de Condicionador de ar do tipo Split/Hiwall, com capacidade de 9.000 BTU/h, INVERTER, ciclo frio, com controle remoto sem fio, classificação energética A (selo PROCEL). Realizando os serviços de confecção de linhas frigoríficas em tubo de cobre utilizando nitrogênio com fluxo constante para realização das soldas evitando impurezas. Fornecimento e instalação de carga de fluido refrigerante ecológico R-410A e de isolante térmico em espuma elastoméricoa para os tubos de cobre. Realizar a interligação entre as unidades Evaporadora e Condensadora com cabo PP 4x1,5mm; inclusive fixação de unidade evaporadora e interligação de drenos, calços de borracha, bem como todos os acessórios necessários para a completa instalação e funcionamento do sistema, e limpeza final da obra. A execução da instalação deve ser executada por Técnico de Refrigeração devidamente especializado em equipamentos INVERTER. ","un",1,2966.74,{"$f":"E598*D598","v":2966.74}]
["30.2","Fornecimento e Instalação, conforme projeto, de Condicionador de ar do tipo Split/Hiwall, com capacidade de 12.000 BTU/h, INVERTER, ciclo frio, com controle remoto sem fio, classificação energética A (selo PROCEL). Realizando os serviços de confecção de linhas frigoríficas em tubo de cobre utilizando nitrogênio com fluxo constante para realização das soldas evitando impurezas. Fornecimento e instalação de carga de fluido refrigerante ecológico R-410A e de isolante térmico em espuma elastoméricoa para os tubos de cobre. Realizar a interligação entre as unidades Evaporadora e Condensadora com cabo PP 4x1,5mm; inclusive fixação de unidade evaporadora e interligação de drenos, calços de borracha, bem como todos os acessórios necessários para a completa instalação e funcionamento do sistema, e limpeza final da obra. A execução da instalação deve ser executada por Técnico de Refrigeração devidamente especializado em equipamentos INVERTER. ","un",5,3529.2200000000003,{"$f":"E599*D599","v":17646.100000000002}]
["30.3","Fornecimento e Instalação, conforme projeto, de Condicionador de ar do tipo Split/Hiwall, com capacidade de 18.000 BTU/h, INVERTER, ciclo frio, com controle remoto sem fio, classificação energética A (selo PROCEL). Realizando os serviços de confecção de linhas frigoríficas em tubo de cobre utilizando nitrogênio com fluxo constante para realização das soldas evitando impurezas. Fornecimento e instalação de carga de fluido refrigerante ecológico R-410A e de isolante térmico em espuma elastoméricoa para os tubos de cobre. Realizar a interligação entre as unidades Evaporadora e Condensadora com cabo PP 4x1,5mm; inclusive fixação de unidade evaporadora e interligação de drenos, calços de borracha, bem como todos os acessórios necessários para a completa instalação e funcionamento do sistema, e limpeza final da obra. A execução da instalação deve ser executada por Técnico de Refrigeração devidamente especializado em equipamentos INVERTER. ","un",3,4790.83,{"$f":"E600*D600","v":14372.49}]
["30.4","Fornecimento e Instalação, conforme projeto, de Condicionador de ar do tipo Split/Hiwall, com capacidade de 24.000 BTU/h, INVERTER, ciclo frio, com controle remoto sem fio, classificação energética A (selo PROCEL). Realizando os serviços de confecção de linhas frigoríficas em tubo de cobre utilizando nitrogênio com fluxo constante para realização das soldas evitando impurezas. Fornecimento e instalação de carga de fluido refrigerante ecológico R-410A e de isolante térmico em espuma elastoméricoa para os tubos de cobre. Realizar a interligação entre as unidades Evaporadora e Condensadora com cabo PP 4x1,5mm; inclusive fixação de unidade evaporadora e interligação de drenos, calços de borracha, bem como todos os acessórios necessários para a completa instalação e funcionamento do sistema, e limpeza final da obra. A execução da instalação deve ser executada por Técnico de Refrigeração devidamente especializado em equipamentos INVERTER. ","un",4,6047.4299999999994,{"$f":"E601*D601","v":24189.719999999998}]
["30.5","Fornecimento e Instalação, conforme projeto, de Condicionador de ar do tipo Split/CASSETE, com capacidade de 24.000 BTU/h,  ciclo frio, com controle remoto sem fio,  selo PROCEL. Realizando os serviços de confecção de linhas frigoríficas em tubo de cobre utilizando nitrogênio com fluxo constante para realização das soldas evitando impurezas. Fornecimento e instalação de carga de fluido refrigerante ecológico R-410A e de isolante térmico em espuma elastoméricoa para os tubos de cobre. Realizar a interligação entre as unidades Evaporadora e Condensadora com cabo PP 4x1,5mm; inclusive fixação de unidade evaporadora e interligação de drenos, calços de borracha, bem como todos os acessórios necessários para a completa instalação e funcionamento do sistema, e limpeza final da obra.  ","un",8,7317.1600000000008,{"$f":"E602*D602","v":58537.280000000006}]
["30.6","Fornecimento e instalação de ventilador sicflux maxx - 125, com caixa de filtragem sicflux filbox RED - 125 com filtro G4+M5, ou similar.","und",4,853.99,{"$f":"E603*D603","v":3415.96}]
["30.7","Fornecimento e instalação de ventilador sicflux maxx - 150, com caixa de filtragem sicflux filbox RED - 150 com filtro G4+M5, ou similar.","un",1,1082.06,{"$f":"E604*D604","v":1082.06}]
["30.8","Fornecimento e instalação de ventilador sicflux maxx - 200, com caixa de filtragem sicflux filbox RED - 200 com filtro G4+M5, ou similar.","un",3,1217.07,{"$f":"E605*D605","v":3651.21}]
["30.9","Fornecimento e instalação de difusor redondo regulável  100 mm","pç",3,56.1,{"$f":"E606*D606","v":168.3}]
["30.10","Fornecimento e instalação de difusor redondo regulável  125 mm","pç",7,56.1,{"$f":"E607*D607","v":392.7}]
["30.11","Fornecimento e instalação de difusor redondo regulável  150 mm","pç",14,69.039999999999992,{"$f":"E608*D608","v":966.56}]
["30.12","Fornecimento e instalação de REGISTRO DE VAZÃO KVR B02 0 101 100 090 ou equivalente","pç",3,213.01,{"$f":"E609*D609","v":639.03}]
["30.13","Fornecimento e instalação de Duto flexível em alumínio s/ isolamento  ø100mm","m",3,26.25,{"$f":"E610*D610","v":78.75}]
["30.14","Fornecimento e instalação de Duto flexível em alumínio s/ isolamento  ø125mm","m",10,28.11,{"$f":"E611*D611","v":281.10000000000002}]
["30.15","Fornecimento e instalação de Duto flexível em alumínio s/ isolamento  ø150mm","m",23,28.5,{"$f":"E612*D612","v":655.5}]
["30.16","Fornecimento e instalação de Duto flexível em alumínio s/ isolamento  ø200mm","m",7,30,{"$f":"E613*D613","v":210}]
["30.17","Fornecimento e instalação de Veneziana Externa em alumínio 300x300 com caixa plenum 300x200  em chapa de aço galvanizado, ou equivalente.","pç",8,145.82,{"$f":"E614*D614","v":1166.56}]
["30.18","Fornecimento e instalação de ADAPTADOR METÁLICO 125x150mm","pç",11,31.509999999999998,{"$f":"E615*D615","v":346.60999999999996}]
["30.19","Fornecimento e instalação de Duto em Tubo PVC d = 150 mm","m",3,80.760000000000005,{"$f":"E616*D616","v":242.28000000000003}]
["30.20","Fornecimento e instalação de Duto em Tubo PVC d = 200 mm","m",2,130.85999999999999,{"$f":"E617*D617","v":261.71999999999997}]
["30.21","Fornecimento e instalação de Duto em Tubo PVC d = 125 mm","m",29,62.739999999999995,{"$f":"E618*D618","v":1819.4599999999998}]
["30.22","Fornecimento e instalação de Duto em Tubo PVC d = 100 mm","m",17,53.36,{"$f":"E619*D619","v":907.12}]
["30.23","Fornecimento e instalação REDUÇÃO EXÊNTRICA 150X100 mm","pç",13,127.22,{"$f":"E620*D620","v":1653.86}]
["30.24","Fornecimento e instalação REDUÇÃO EXÊNTRICA 200X150 mm","pç",1,236.43,{"$f":"E621*D621","v":236.43}]
["30.25","Fornecimento e instalação TÊ 150X150 mm","pç",4,162.06,{"$f":"E622*D622","v":648.24}]
["30.26","Fornecimento e instalação TÊ 200X200 mm","pç",10,228.19,{"$f":"E623*D623","v":2281.9}]
["30.27","Fornecimento e instalação TÊ DE REDUÇÃO 150X100 mm","pç",2,58.64,{"$f":"E624*D624","v":117.28}]
["30.28","Fornecimento e instalação JOELHO 45 GRAUS, 150mm","pç",4,70.41,{"$f":"E625*D625","v":281.64}]
["30.29","Fornecimento e instalação JOELHO 45 GRAUS, 100mm","pç",1,18.03,{"$f":"E626*D626","v":18.03}]
["30.30","Fornecimento e instalação JOELHO 90 GRAUS, 150mm","pç",1,64.56,{"$f":"E627*D627","v":64.56}]
["30.31","Fornecimento e Instalação de tubulação em cobre p/ interligação do condensador ao evaporador, inclusive isolamento, cabo PP 4x1,5mm², conexões e fixações, p/ condicionadores de ar tipo HIWALL 12000 BTU","m",13.5,103.92999999999999,{"$f":"E628*D628","v":1403.0549999999998}]
["30.32","Fornecimento e Instalação de tubulação em cobre p/ interligação do condensador ao evaporador, inclusive isolamento, cabo PP 4x1,5mm², conexões e fixações, p/ condicionadores de ar tipo HIWALL 18000 BTU","m",4.5,103.92999999999999,{"$f":"E629*D629","v":467.68499999999995}]
["30.33","Fornecimento e Instalação de tubulação em cobre p/ interligação do condensador ao evaporador, inclusive isolamento, cabo PP 4x1,5mm², conexões e fixações, p/ condicionadores de ar tipo HIWALL 24000 BTU","m",23.6,137.18,{"$f":"E630*D630","v":3237.4480000000003}]
["31.0","LIMPEZA FINAL DA OBRA E DESMOBILIZAÇÃO","-","-",0,"-"]
["31.1","Limpeza Geral da Obra","m²",684.1,2.67,{"$f":"E632*D632","v":1826.547}]
["31.2","Demolição de alvenaria para qualquer tipo de bloco, de forma mecanizada, sem reaproveitamento.","m³",6.9690000000000003,64.099999999999994,{"$f":"E633*D633","v":446.71289999999999}]
["31.3","Remoção de tapume/ chapas metálicas e de madeira, de forma manual, sem reaproveitamento. ","m²",696.4,3.3200000000000003,{"$f":"E634*D634","v":2312.0480000000002}]
["31.4","Transporte horizontal  com jerica de 60l, de massa/ granel.","m³xKm",0.43469999999999998,1491.35,{"$f":"E635*D635","v":648.2898449999999}]
["31.5","Remoção de metralha em caminhão basculante D.M.T. 6 Km, inclusive carga e descarga mecânica.","m³",14.49,15.809999999999999,{"$f":"E636*D636","v":229.08689999999999}]
["31.6","Desmobilização da obra (pessoal, máquinas e equipamentos).","und",1,1719.76,{"$f":"E637*D637","v":1719.76}]
["-","-","-","-","-","-"]
["-","-","-","-","-","-"]
["-","-","-","-","-","-"]
["-","-","-","-","-","-"]
["-","-","-","-","-","-"]
["-","-","-","-","-","-"]
["-","-","-","-","-","-"]
["-","-","-","-","-","-"]
["-","-","-","-","-","-"]
["-","-","-","-","-","-"]
["-","-","-","-","-","-"]
["-","-","-","-","-","-"]
["-","-","-","-","-","-"]
["-","-","-","-","-","-"]
["-","-","-","-","-","-"]
["-","-","-","-","-","-"]
["-","-","-","-","-","-"]
["-","-","-","-","-","-"]
["-","-","-","-","-","-"]
["-","-","-","-","-","-"]
["-","-","-","-","-","-"]
["-","-","-","-","-","-"]
["-","-","-","-","-","-"]
["-","-","-","-","-","-"]
["-","-","-","-","-","-"]
["-","-","-","-","-","-"]
["-","-","-","-","-","-"]
["-","-","-","-","-","-"]
["-","-","-","-","-","-"]
["-","-","-","-","-","-"]
["-","-","-","-","-","-"]
["-","-","-","-","-","-"]
["-","-","-","-","-","-"]
["-","-","-","-","-","-"]
["-","-","-","-","-","-"]
["-","-","-","-","-","-"]
["-","-","-","-","-","-"]
["-","-","-","-","-","-"]
["-","-","-","-","-","-"]
["-","-","-","-","-","-"]
["-","-","-","-","-","-"]
["-","-","-","-","-","-"]
["-","-","-","-","-","-"]
["-","-","-","-","-","-"]
["-","-","-","-","-","-"]
["-","-","-","-","-","-"]
["-","-","-","-","-","-"]
["-","-","-","-","-","-"]
["-","-","-","-","-","-"]
["-","-","-","-","-","-"]
["-","-","-","-","-","-"]
["-","-","-","-","-","-"]
["-","-","-","-","-","-"]
["-","-","-","-","-","-"]
["-","-","-","-","-","-"]
["-","-","-","-","-","-"]
["-","-","-","-","-","-"]
["-","-","-","-","-","-"]
["-","-","-","-","-","-"]
["-","-","-","-","-","-"]
["-","-","-","-","-","-"]
["-","-","-","-","-","-"]
["-","-","-","-","-","-"]
["-","-","-","-","-","-"]
["-","-","-","-","-","-"]
["-","-","-","-","-","-"]
["-","-","-","-","-","-"]
["-","-","-","-","-","-"]
["-","-","-","-","-","-"]
["-","-","-","-","-","-"]
["-","-","-","-","-","-"]
["-","-","-","-","-","-"]
["-","-","-","-","-","-"]
["-","-","-","-","-","-"]
["-","-","-","-","-","-"]
["-","-","-","-","-","-"]
["-","-","-","-","-","-"]
["-","-","-","-","-","-"]
["-","-","-","-","-","-"]
["-","-","-","-","-","-"]
["-","-","-","-","-","-"]
["-","-","-","-","-","-"]
["-","-","-","-","-","-"]
["-","-","-","-","-","-"]
["-","-","-","-","-","-"]
["-","-","-","-","-","-"]
["-","-","-","-","-","-"]
["-","-","-","-","-","-"]
["-","-","-","-","-","-"]
["-","-","-","-","-","-"]
["-","-","-","-","-","-"]
["-","-","-","-","-","-"]
["-","-","-","-","-","-"]
["-","-","-","-","-","-"]
["-","-","-","-","-","-"]
["-","-","-","-","-","-"]
["-","-","-","-","-","-"]
["-","-","-","-","-","-"]
["-","-","-","-","-","-"]
["-","-","-","-","-","-"]
["-","-","-","-","-","-"]
["-","-","-","-","-","-"]
["-","-","-","-","-","-"]
["-","-","-","-","-","-"]
["-","-","-","-","-","-"]
["-","-","-","-","-","-"]
["-","-","-","-","-","-"]
["-","-","-","-","-","-"]
["-","-","-","-","-","-"]
["-","-","-","-","-","-"]
["-","-","-","-","-","-"]
["-","-","-","-","-","-"]
["-","-","-","-","-","-"]
["-","-","-","-","-","-"]
["-","-","-","-","-","-"]
["-","-","-","-","-","-"]
["-","-","-","-","-","-"]
["-","-","-","-","-","-"]
["-","-","-","-","-","-"]
["-","-","-","-","-","-"]
["-","-","-","-","-","-"]
["-","-","-","-","-","-"]
["-","-","-","-","-","-"]
["-","-","-","-","-","-"]
["-","-","-","-","-","-"]
["-","-","-","-","-","-"]
["-","-","-","-","-","-"]
["-","-","-","-","-","-"]
["-","-","-","-","-","-"]
["-","-","-","-","-","-"]
["-","-","-","-","-","-"]
["-","-","-","-","-","-"]
["-","-","-","-","-","-"]
["-","-","-","-","-","-"]
["-","-","-","-","-","-"]
["-","-","-","-","-","-"]
["-","-","-","-","-","-"]
["-","-","-","-","-","-"]
["-","-","-","-","-","-"]
["-","-","-","-","-","-"]
["-","-","-","-","-","-"]
["-","-","-","-","-","-"]
["-","-","-","-","-","-"]
["-","-","-","-","-","-"]
["-","-","-","-","-","-"]
["-","-","-","-","-","-"]
["-","-","-","-","-","-"]
["-","-","-","-","-","-"]
["-","-","-","-","-","-"]
["-","-","-","-","-","-"]
["-","-","-","-","-","-"]
["-","-","-","-","-","-"]
["-","-","-","-","-","-"]
["-","-","-","-","-","-"]
["-","-","-","-","-","-"]
["-","-","-","-","-","-"]
["-","-","-","-","-","-"]
["-","-","-","-","-","-"]
["-","-","-","-","-","-"]
["-","-","-","-","-","-"]
["-","-","-","-","-","-"]
["-","-","-","-","-","-"]
["-","-","-","-","-","-"]
["-","-","-","-","-","-"]
["-","-","-","-","-","-"]
["-","-","-","-","-","-"]
["-","-","-","-","-","-"]
["-","-","-","-","-","-"]
["-","-","-","-","-","-"]
["-","-","-","-","-","-"]
["-","-","-","-","-","-"]
["-","-","-","-","-","-"]
["-","-","-","-","-","-"]
["-","-","-","-","-","-"]
["-","-","-","-","-","-"]
["-","-","-","-","-","-"]
["-","-","-","-","-","-"]
["-","-","-","-","-","-"]
["-","-","-","-","-","-"]
["-","-","-","-","-","-"]
["-","-","-","-","-","-"]
["-","-","-","-","-","-"]
["-","-","-","-","-","-"]
["-","-","-","-","-","-"]
["-","-","-","-","-","-"]
["-","-","-","-","-","-"]
["-","-","-","-","-","-"]